Workbook

Sheet OVERALL
B2: MATRICA E BAROMETRIT TË REFORMAVE TË BE-së | Q2: Legjendë e renditjes: 0-25 pikë: performancë e dobët; 26-50 pikë: performancë e kufizuar; 51-75 pikë: performancë e mirë; 76-100 pikë: performancë shumë e mirë.
B6: Institucioni | C6: Kriteri 1: Kompleksiteti I masave | F6: Kriteri 2: Planifikimi vs obligimet evropiane | I6: Kriteri 3: Zbatimi I masave të planifikuara | L6: Kriteri 4: Vlerësimi i raportit të vendit të BE-së | O6: Rezultati I përgjithshëm (shuma e pikëve)
C7: Nota | D7: Pesha (25%) | E7: Pikët (Nota x Pesha ) | F7: Nota | G7: Pesha (35%) | H7: Pikët (Nota x Pesha ) | I7: Nota | J7: Pesha (30%) | K7: Pikët (Nota x Pesha ) | L7: Nota | M7: Pesha (10%) | N7: Pikët (Nota x Pesha )
B8: Ministria e Ekonomisë | C8: ='Criteria 1'!O19 -> 10 | D8: 2.5 | E8: =C8*D8 -> 25 | F8: ='Criteria 2'!D16 -> 4 | G8: 3.5 | H8: =F8*G8 -> 14 | I8: ='Criteria 3'!F18 -> 5 | J8: 3 | K8: =I8*J8 -> 15 | L8: ='Criteria 4'!C6 -> 10 | M8: 1 | N8: =L8*M8 -> 10 | O8: =N8+K8+H8+E8 -> 64
B9: Ministria e Mjedisit, Planifikimit Hapësinor dhe Infrastrukturës | C9: ='Criteria 1'!O57 -> 9 | D9: 2.5 | E9: =C9*D9 -> 22.5 | F9: ='Criteria 2'!D96 -> 5 | G9: 3.5 | H9: =F9*G9 -> 17.5 | I9: ='Criteria 3'!F57 -> 8 | J9: 3 | K9: =I9*J9 -> 24 | L9: ='Criteria 4'!C10 -> 0 | M9: 1 | N9: =L9*M9 -> 0 | O9: =N9+K9+H9+E9 -> 64
B10: Ministria e Arsimit, Shkencës, Teknologjisë dhe Inovacionit | C10: ='Criteria 1'!O98 -> 6 | D10: 2.5 | E10: =C10*D10 -> 15 | F10: ='Criteria 2'!D126 -> 4 | G10: 3.5 | H10: =F10*G10 -> 14 | I10: ='Criteria 3'!F98 -> 7 | J10: 3 | K10: =I10*J10 -> 21 | L10: ='Criteria 4'!C15 -> 10 | M10: 1 | N10: =L10*M10 -> 10 | O10: =N10+K10+H10+E10 -> 60
B11: Ministria e Bujqësisë, Pylltarisë dhe Zhvillimit Rural | C11: ='Criteria 1'!O108 -> 10 | D11: 2.5 | E11: =C11*D11 -> 25 | F11: ='Criteria 2'!D146 -> 3 | G11: 3.5 | H11: =F11*G11 -> 10.5 | I11: ='Criteria 3'!F108 -> 8 | J11: 3 | K11: =I11*J11 -> 24 | L11: ='Criteria 4'!C19 -> 0 | M11: 1 | N11: =L11*M11 -> 0 | O11: =N11+K11+H11+E11 -> 60
B12: Ministria e Punëve të Brendshme | C12: ='Criteria 1'!O158 -> 7 | D12: 2.5 | E12: =C12*D12 -> 17.5 | F12: ='Criteria 2'!D174 -> 4 | G12: 3.5 | H12: =F12*G12 -> 14 | I12: ='Criteria 3'!F158 -> 8 | J12: 3 | K12: =I12*J12 -> 24 | L12: ='Criteria 4'!C23 -> 0 | M12: 1 | N12: =L12*M12 -> 0 | O12: =N12+K12+H12+E12 -> 56
B13: Ministria e Industrisë, Ndërmarrësisë dhe Tregtisë | C13: ='Criteria 1'!O199 -> 7 | D13: 2.5 | E13: =C13*D13 -> 17.5 | F13: ='Criteria 2'!D237 -> 2 | G13: 3.5 | H13: =F13*G13 -> 7 | I13: ='Criteria 3'!F199 -> 7 | J13: 3 | K13: =I13*J13 -> 21 | L13: ='Criteria 4'!C33 -> 10 | M13: 1 | N13: =L13*M13 -> 10 | O13: =N13+K13+H13+E13 -> 56
B14: Ministria e Drejtësisë | C14: ='Criteria 1'!O208 -> 10 | D14: 2.5 | E14: =C14*D14 -> 25 | F14: ='Criteria 2'!D252 -> 2 | G14: 3.5 | H14: =F14*G14 -> 7 | I14: ='Criteria 3'!F208 -> 7 | J14: 3 | K14: =I14*J14 -> 21 | L14: ='Criteria 4'!C36 -> 0 | M14: 1 | N14: =L14*M14 -> 0 | O14: =N14+K14+H14+E14 -> 53
B15: Ministria e Financave, Punës dhe Transfereve | C15: ='Criteria 1'!O249 -> 7 | D15: 2.5 | E15: =C15*D15 -> 17.5 | F15: ='Criteria 2'!D297 -> 4 | G15: 3.5 | H15: =F15*G15 -> 14 | I15: ='Criteria 3'!F249 -> 7 | J15: 3 | K15: =I15*J15 -> 21 | L15: ='Criteria 4'!C43 -> 0 | M15: 1 | N15: =L15*M15 -> 0 | O15: =N15+K15+H15+E15 -> 53
B16: Ministria për Komunitete dhe Kthim | C16: ='Criteria 1'!O256 -> 3 | D16: 2.5 | E16: =C16*D16 -> 7.5 | F16: ='Criteria 2'!D303 -> 4 | G16: 3.5 | H16: =F16*G16 -> 14 | I16: ='Criteria 3'!F256 -> 8 | J16: 3 | K16: =I16*J16 -> 24 | L16: ='Criteria 4'!C46 -> 0 | M16: 1 | N16: =L16*M16 -> 0 | O16: =N16+K16+H16+E16 -> 46
B17: Ministria e Shëndetësisë | C17: ='Criteria 1'!O271 -> 9 | D17: 2.5 | E17: =C17*D17 -> 22.5 | F17: ='Criteria 2'!D316 -> 2 | G17: 3.5 | H17: =F17*G17 -> 7 | I17: ='Criteria 3'!F271 -> 5 | J17: 3 | K17: =I17*J17 -> 15 | L17: ='Criteria 4'!C49 -> 0 | M17: 1 | N17: =L17*M17 -> 0 | O17: =N17+K17+H17+E17 -> 45
B18: Zyra e Kryeministrit | C18: ='Criteria 1'!O291 -> 6 | D18: 2.5 | E18: =C18*D18 -> 15 | F18: ='Criteria 2'!D329 -> 0 | G18: 3.5 | H18: =F18*G18 -> 0 | I18: ='Criteria 3'!F291 -> 8 | J18: 3 | K18: =I18*J18 -> 24 | L18: ='Criteria 4'!C53 -> 0 | M18: 1 | N18: =L18*M18 -> 0 | O18: =N18+K18+H18+E18 -> 39
B19: Ministria e Kulturës, Rinisë dhe Sportit | C19: ='Criteria 1'!O298 -> 8 | D19: 2.5 | E19: =C19*D19 -> 20 | F19: ='Criteria 2'!D338 -> 2 | G19: 3.5 | H19: =F19*G19 -> 7 | I19: ='Criteria 3'!F298 -> 3 | J19: 3 | K19: =I19*J19 -> 9 | L19: ='Criteria 4'!C57 -> 0 | M19: 1 | N19: =L19*M19 -> 0 | O19: =N19+K19+H19+E19 -> 36
B20: Ministria e Administrimit të Pushtetit Lokal | C20: ='Criteria 1'!O309 -> 2 | D20: 2.5 | E20: =C20*D20 -> 5 | F20: ='Criteria 2'!D349 -> 0 | G20: 3.5 | H20: =F20*G20 -> 0 | I20: ='Criteria 3'!F309 -> 8 | J20: 3 | K20: =I20*J20 -> 24 | L20: ='Criteria 4'!C60 -> 0 | M20: 1 | N20: =L20*M20 -> 0 | O20: =N20+K20+H20+E20 -> 29
B21: Qeveria | O21: =AVERAGE(O8:O20) -> 51

Sheet Criteria 1
A1: Kriteri 1: Kompleksiteti i masave Ministritë planifikojnë masa të ndryshme në kuadër të Programit Kombëtar për Integrim Evropian dhe Agjendës së Reformës Evropiane. Në disa raste, këto masa janë relevante, të planifikuara mirë, strategjike, komplekse dhe të kujdesshme financiarisht. Në raste të tjera, ata nuk janë. Qëllimi i këtij vlerësimi është të bëjë dallimin ndërmjet masave të BE-së të planifikuara mirë dhe më pak të planifikuara mirë, duke shpërblyer kështu ministritë me performancë më të mirë.
A2: Institution | B2: Priority/Chapter | C2: Masat | D2: Afati | E2: Referencë | F2: Criteria 1: Kompleksiteti I masave
F3: Specifike | G3: E matshme | H3: Reformë | I3: Intensiteti i burimeve | J3: Kompleksiteti ndërinstitucional | K3: Nivelet e miratimit | L3: Prioritet i MSA-së dhe ERA-s | M3: Masa përafron Acquis | N3: Ndjeshmëria politike | O3: Totali
A4: Ministria e Ekonomisë | Q4: SAA priority chapters: 1. Chapter 1: Free Movement of Goods 2. Chapter 3: Right of Establishment and Freedom to Provide Services 3. Chapter 5: Public Procurement 4. Chapter 6: Company Law 5. Chapter 7: Intellectual Property Law 6. Chapter 8: Competition Policy 7. Chapter 12: Food Safety, Veterinary and Phytosanitary Policy 8. Chapter 23: Judiciary and Fundamental Rights 9. Chapter 24: Justice, Freedom and Security 10. Public Administration Reform (PAR)
A5: ME | C5: Projektligji për energji, i miratuar | D5: K4 2023 | E5: PKIE | F5: 1 | G5: 1 | H5: 1 | I5: 1 | J5: 1 | K5: 1 | L5: 1 | M5: 1 | N5: 0 | O5: =SUM(F5:N5) -> 8
A6: ME | C6: Projektligji për rregullatorin e energjisë, i miratuar | D6: K4 2023 | E6: PKIE | F6: 1 | G6: 1 | H6: 1 | I6: 1 | J6: 1 | K6: 1 | L6: 1 | M6: 1 | N6: 0 | O6: 8
A7: ME | C7: Projektligji për burimet e ripërtëritshme të energjisë, i miratuar | D7: K2 2023 | E7: PKIE ERA (K4 2022) | F7: 1 | G7: 1 | H7: 1 | I7: 1 | J7: 1 | K7: 1 | L7: 1 | M7: 1 | N7: 0 | O7: 8
A8: ME | C8: Programi i Zbatimit të Strategjisë së Energjisë, i miratuar | D8: K3 2023 | E8: PKIE ERA (K2 2022) | F8: 1 | G8: 1 | H8: 1 | I8: 1 | J8: 1 | K8: 1 | L8: 1 | M8: 0 | N8: 0 | O8: 7
A9: ME | C9: Plani i Energjisë dhe Klimës 2021-2030, i miratuar | D9: K2 2022 | E9: ERA | F9: 1 | G9: 1 | H9: 1 | I9: 1 | J9: 1 | K9: 1 | L9: 1 | M9: 0 | N9: 0 | O9: 7
A10: ME | C10: Rregullorja për skemën e re mbështetëse për BRE | D10: K4 2022 | E10: ERA | F10: 1 | G10: 1 | H10: 1 | I10: 1 | J10: 1 | K10: 1 | L10: 1 | M10: 1 | N10: 0 | O10: 8
A11: ME | C11: Dizajnimi i skemës konkurruese për BRE | D11: K4 2022 | E11: ERA | F11: 1 | G11: 1 | H11: 1 | I11: 1 | J11: 1 | K11: 1 | L11: 1 | M11: 0 | N11: 0 | O11: 7
A12: ME | C12: Hapja e tregut të energjisë për konsumatorët e nivelit të tensionit 35 kv dhe 10 kv | D12: K2 2022 | E12: ERA | F12: 1 | G12: 1 | H12: 1 | I12: 1 | J12: 1 | K12: 1 | L12: 1 | M12: 0 | N12: 0 | O12: 7
A13: ME | C13: Projektligji i plotësuar-ndryshuar për ndërmarrje publike, bazuar në rekomandimet e BE dhe praktikat e mira, i miratuar | D13: K2 2022 | E13: ERA | F13: 1 | G13: 1 | H13: 1 | I13: 1 | J13: 1 | K13: 1 | L13: 1 | M13: 1 | N13: 0 | O13: 8
A14: ME | C14: Aktet nënligjore të miratuara | D14: K4 2022 | E14: ERA | F14: 1 | G14: 1 | H14: 1 | I14: 1 | J14: 1 | K14: 1 | L14: 1 | M14: 1 | N14: 0 | O14: 8
A15: ME | C15: Kodi i etikës dhe qeverisjes korporative të ndërmarrjeve publike, i miratuar | D15: K3 2022 | E15: ERA | F15: 1 | G15: 1 | H15: 0 | I15: 0 | J15: 0 | K15: 0 | L15: 1 | M15: 0 | N15: 0 | O15: 3
A16: ME | C16: Agjenda Digjitale për Kosovën 2030, e miratua | D16: K3 2023 | E16: PKIE | F16: 1 | G16: 1 | H16: 1 | I16: 1 | J16: 1 | K16: 1 | L16: 1 | M16: 1 | N16: 0 | O16: 8
A17: ME | C17: Njëzet (20) pirgje të rrjetit mobil, ‘5G ready’, të lidhura me infrastrukturë fikse brezgjerë | D17: K4 2023 | E17: PKIE | F17: 1 | G17: 1 | H17: 1 | I17: 1 | J17: 1 | K17: 1 | L17: 1 | M17: 0 | N17: 0 | O17: 7
A18: Përqindja | O18: 92%
A19: Rezultati i përgjithshëm | O19: 10
A20: Ministria e Mjedisit, Planifikimit Hapësinor dhe Infrastrukturës
A21: MMPHI | B21: K14: Politikat e Transportit | C21: Projektligji për plotësim-ndryshimin e Ligjit për Transportin Rrugor, i miratuar | D21: K4 2023 | E21: PKIE | F21: 1 | G21: 1 | H21: 1 | I21: 0 | J21: 1 | K21: 1 | L21: 0 | M21: 1 | N21: 0 | O21: =SUM(F21:N21) -> 6
A22: MMPHI | B22: K14: Politikat e Transportit | C22: UA për kontrollimin e rregullsisë teknike të automjeteve në rrugë, i miratuar | D22: K2 2023 | E22: PKIE | F22: 1 | G22: 1 | H22: 0 | I22: 0 | J22: 0 | K22: 0 | L22: 0 | M22: 1 | N22: 0 | O22: =SUM(F22:N22) -> 3
A23: MMPHI | B23: K14: Politikat e Transportit | C23: Plani i veprimit 2023-2025 për zbatimin e Strategjisë së transportit multimodal 2023-2030, i miratuar | D23: K4 2023 | E23: PKIE | F23: 1 | G23: 1 | H23: 1 | I23: 1 | J23: 1 | K23: 1 | L23: 0 | M23: 0 | N23: 0 | O23: 6
A24: MMPHI | B24: K14: Politikat e Transportit | C24: Koncept dokumenti për hekurudha, i miratuar | D24: K4 2023 | E24: PKIE | F24: 1 | G24: 1 | H24: 1 | I24: 0 | J24: 1 | K24: 0 | L24: 1 | M24: 0 | N24: 0 | O24: 5
A25: MMPHI | B25: K14: Politikat e Transportit | C25: Koncept dokumenti për transportin e mallrave të rrezikshme, i miratuar | D25: K3 2023 | E25: PKIE | F25: 1 | G25: 1 | H25: 1 | I25: 0 | J25: 1 | K25: 0 | L25: 1 | M25: 0 | N25: 0 | O25: 5
A26: MMPHI | B26: K27: Mjedisi | C26: Projektligji për plotësim-ndryshimin e Ligjit për Vlerësimin Strategjik Mjedisor, i miratuar | D26: K3 2023 | E26: PKIE | F26: 1 | G26: 1 | H26: 1 | I26: 1 | J26: 1 | K26: 1 | L26: 1 | M26: 1 | N26: 0 | O26: 8
A27: MMPHI | B27: K27: Mjedisi | C27: Projektligji për ndryshime klimatike, i miratuar | D27: K2 2023 | E27: PKIE | F27: 1 | G27: 1 | H27: 1 | I27: 1 | J27: 1 | K27: 1 | L27: 1 | M27: 1 | N27: 0 | O27: 8
A28: MMPHI | B28: K27: Mjedisi | C28: Projektligji për inspektimin në fushën e mjedisit, ujërave, natyrës, planifikimit hapësinor, ndërtimit dhe banimit, i miratuar | D28: K4 2023 | E28: PKIE | F28: 1 | G28: 1 | H28: 1 | I28: 1 | J28: 1 | K28: 1 | L28: 1 | M28: 1 | N28: 0 | O28: 8
A29: MMPHI | B29: K27: Mjedisi | C29: UA për ambalazhim/paketim dhe mbeturinat e ambalazhimit/ paketimit, i miratuar | D29: K2 2023 | E29: PKIE | F29: 1 | G29: 1 | H29: 1 | I29: 0 | J29: 1 | K29: 0 | L29: 1 | M29: 1 | N29: 0 | O29: 6
A30: MMPHI | B30: K27: Mjedisi | C30: Strategjia për Mbrojtjen e Mjedisit dhe Zhvillim të Qëndrueshëm 2022-2030, e miratuar | D30: K3 2023 | E30: PKIE/ERA | F30: 1 | G30: 1 | H30: 1 | I30: 0 | J30: 1 | K30: 0 | L30: 1 | M30: 0 | N30: 0 | O30: 5
A31: MMPHI | B31: K27: Mjedisi | C31: Strategjia Shtetërore e Ujërave të Kosovës 2023-2027 dhe Plani i Veprimit 2023-2025 për zbatimin e saj, i miratuar | D31: K2 2023 | E31: PKIE/ERA | F31: 1 | G31: 1 | H31: 1 | I31: 0 | J31: 1 | K31: 0 | L31: 1 | M31: 0 | N31: 0 | O31: 5
C32: Koncept dokumenti për fushën e ujërave, i miratuar | D32: K2 2023 | E32: PKIE | F32: 1 | G32: 1 | H32: 1 | I32: 0 | J32: 1 | K32: 0 | L32: 1 | M32: 0 | N32: 0 | O32: =SUM(F32:N32) -> 5
C33: Koncept dokumenti për fushën e mbrojtjes së natyrës, i miratuar | D33: K3 2023 | E33: PKIE | F33: 1 | G33: 1 | H33: 1 | I33: 0 | J33: 1 | K33: 0 | L33: 1 | M33: 0 | N33: 0 | O33: 5
C34: Plani për menaxhimin e mbeturinave ndërtimore dhe të demolimit, i miratuar | D34: K2 2023 | E34: PKIE/ERA | F34: 1 | G34: 1 | H34: 1 | I34: 0 | J34: 1 | K34: 1 | L34: 1 | M34: 0 | N34: 0 | O34: 6
C35: Numri i inspektorëve të trajnuar për të kontrolluar zbatimin e legjislacionit mjedisor | D35: K4 2023 | E35: PKIE/ERA | F35: 0 | G35: 0 | H35: 0 | I35: 0 | J35: 0 | K35: 0 | L35: 0 | M35: 0 | N35: 0 | O35: 0
C36: Numri i zonave të reja të natyres (rreth 10), të mbrojtura | D36: K4 2023 | E36: PKIE/ERA | F36: 1 | G36: 1 | H36: 1 | I36: 1 | J36: 1 | K36: 1 | L36: 1 | M36: 0 | N36: 0 | O36: 7
C37: Numri i deponive ilegale në komuna të identifikuara dhe reduktuara | D37: K3 2023 | E37: PKIE/ERA | F37: 0 | G37: 0 | H37: 0 | I37: 0 | J37: 0 | K37: 0 | L37: 0 | M37: 0 | N37: 0 | O37: 0
C38: Inventari i gazrave serrë për vitin 2021, i përgatitur | D38: K2 2023 | E38: PKIE | F38: 1 | G38: 1 | H38: 1 | I38: 1 | J38: 1 | K38: 0 | L38: 0 | M38: 0 | N38: 0 | O38: 5
C39: Projektligji për mbrojtjen e ajrit nga ndotja, i miratuar | D39: K1 2022 | E39: ERA | F39: 1 | G39: 1 | H39: 1 | I39: 1 | J39: 0 | K39: 1 | L39: 1 | M39: 1 | N39: 0 | O39: =SUM(F39:N39) -> 7
C40: Projektligji për ujërat e Kosovës, i miratuar | D40: K1 2022 | E40: ERA | F40: 1 | G40: 1 | H40: 1 | I40: 1 | J40: 1 | K40: 1 | L40: 1 | M40: 1 | N40: 0 | O40: 8
C41: Projektligji për mbeturinat, i miratuar | D41: K2 2021 | E41: ERA | F41: 1 | G41: 1 | H41: 1 | I41: 1 | J41: 1 | K41: 1 | L41: 1 | M41: 1 | N41: 0 | O41: 8
C42: Fillimi i hartimit të strategjisë për dekarbonizim | D42: K4 2021 | E42: ERA | F42: 1 | G42: 1 | H42: 1 | I42: 1 | J42: 1 | K42: 1 | L42: 1 | M42: 1 | N42: 0 | O42: 8
C43: Plani i rishikuar kombëtar për cilësinë e ajrit, i miratuar | D43: K4 2022 | E43: ERA | F43: 1 | G43: 1 | H43: 1 | I43: 1 | J43: 1 | K43: 1 | L43: 1 | M43: 0 | N43: 0 | O43: 7
C44: Plani për menaxhimin e mbeturinave me VSM në zonën e Prishtinës, i hartuar | D44: K2 2023 | E44: ERA | F44: 1 | G44: 1 | H44: 1 | I44: 1 | J44: 1 | K44: 1 | L44: 1 | M44: 0 | N44: 0 | O44: 7
C45: Plani i menaxhimit për pellgun e lumit Drini i Bardhë, i finalizuar | D45: K4 2022 | E45: ERA | F45: 1 | G45: 1 | H45: 1 | I45: 1 | J45: 1 | K45: 1 | L45: 1 | M45: 0 | N45: 0 | O45: 7
C46: Rrjeti i monitorimit të ujërave nëntokësore, i funksionalizuar | D46: K4 2022 | E46: ERA | F46: 0 | G46: 0 | H46: 0 | I46: 0 | J46: 0 | K46: 0 | L46: 0 | M46: 0 | N46: 0 | O46: 0
A47: MMPHI | B47: K27: Mjedisi | C47: Trajnimi i nivelit komunal për zbatimin e legjislacionit për menaxhimin e mbeturinave | D47: K4 2022 | E47: ERA | F47: 0 | G47: 0 | H47: 0 | I47: 0 | J47: 0 | K47: 0 | L47: 0 | M47: 0 | N47: 0 | O47: 0
C48: Fillimi i zbatimit të projekteve për menaxhimin e mbeturinave të rrezikshme: objektin për ruajtjen e përkohshme të mbetjeve të rrezikshme, dekomisionimi i Kosovës A | D48: K3 2021 | E48: ERA | F48: 1 | G48: 1 | H48: 1 | I48: 1 | J48: 1 | K48: 1 | L48: 1 | M48: 0 | N48: 0 | O48: 7
C49: Qendrat e transferimit dhe riciklimit në Skenderaj, Klinë, Istog, Novobërdë, të ndërtuara | D49: K2 2023 | E49: ERA | F49: 1 | G49: 1 | H49: 1 | I49: 1 | J49: 1 | K49: 1 | L49: 1 | M49: 0 | N49: 0 | O49: 7
C50: Fillimi i krijimit të sistemit të rikthimit të depozitës për shishe, plastikë dhe kanaçe | D50: K4 2022 | E50: ERA | F50: 1 | G50: 1 | H50: 1 | I50: 1 | J50: 1 | K50: 1 | L50: 1 | M50: 0 | N50: 0 | O50: 7
C51: Plotësim-ndryshimi i Ligjit nr.03/L-233 për mbrojtjen e natyrës | D51: K3 2021 | E51: ERA | F51: 1 | G51: 1 | H51: 1 | I51: 1 | J51: 1 | K51: 1 | L51: 1 | M51: 1 | N51: 0 | O51: 8
C52: Monitorimi dhe raportimi për gjendjen e zonave të mbrojtura dhe biodiversitetit | D52: K4 2022 | E52: ERA | F52: 0 | G52: 0 | H52: 0 | I52: 0 | J52: 0 | K52: 0 | L52: 0 | M52: 0 | N52: 0 | O52: 0
C53: Plani hapësinor për parkun kombëtar ‘Sharri’, i miratuar | D53: K2 2023 | E53: ERA | F53: 1 | G53: 1 | H53: 1 | I53: 1 | J53: 1 | K53: 1 | L53: 1 | M53: 0 | N53: 0 | O53: 7
C54: Plani hapësinor i parkut kombëtar ‘Bjeshkët e Nemuna’, i miratuar | D54: K2 2022 | E54: ERA | F54: 1 | G54: 1 | H54: 1 | I54: 1 | J54: 1 | K54: 1 | L54: 1 | M54: 0 | N54: 0 | O54: 7
C55: Krijimi i Sistemit online të Informacionit Mjedisor | D55: K1 2023 | E55: ERA | F55: 1 | G55: 1 | H55: 1 | I55: 1 | J55: 1 | K55: 1 | L55: 1 | M55: 0 | N55: 0 | O55: 7
A56: Përqindja | O56: 83%
A57: Rezultati i përgjithshëm | O57: 9
A58: Ministria e Arsimit, Shkencës, Teknologjisë dhe Inovacionit
A59: MASHTI | B59: K3: E drejta e themelimit dhe liria e ofrimit të shërbimeve | C59: UA për plotësim-ndryshimin e UA për Standardet dhe Procedurat e Verifikimit të Standardeve të Profesionit, i miratuar | D59: K4 2023 | E59: PKIE | F59: 1 | G59: 1 | H59: 1 | I59: 0 | J59: 0 | K59: 0 | L59: 0 | M59: 1 | N59: 0 | O59: =SUM(F59:N59) -> 4
A60: MASHTI | B60: K25: Shkenca dhe hulumtimet | C60: Mbështetja e qendrave mësimore për romë, ashkalinj dhe egjiptianë | D60: K4 2023 | E60: PKIE | F60: 0 | G60: 0 | H60: 0 | I60: 0 | J60: 0 | K60: 0 | L60: 0 | M60: 0 | N60: 0 | O60: 0
A61: MASHTI | B61: K25: Shkenca dhe hulumtimet | C61: Bursat për nxënës dhe studentë romë, ashkalinj dhe egjiptianë, të ndara | D61: K4 2023 | E61: PKIE | F61: 0 | G61: 0 | H61: 0 | I61: 0 | J61: 0 | K61: 0 | L61: 0 | M61: 0 | N61: 0 | O61: 0
A62: MASHTI | B62: K25: Shkenca dhe hulumtimet | C62: Programi Kombëtar i Shkencës, i hartuar | D62: K4 2023 | E62: PKIE | F62: 1 | G62: 1 | H62: 1 | I62: 1 | J62: 1 | K62: 1 | L62: 1 | M62: 0 | N62: 0 | O62: 7
C63: Platforma KRIS, e finalizuar dhe lansuar | D63: K4 2023 | E63: PKIE | F63: 1 | G63: 1 | H63: 1 | I63: 1 | J63: 1 | K63: 1 | L63: 1 | M63: 1 | N63: 0 | O63: 8
C64: Pikat kombëtare të kontaktit për Programin Horizon, të funksionalizuara | D64: K4 2023 | E64: PKIE | F64: 1 | G64: 1 | H64: 1 | J64: 1 | L64: 1 | M64: 0 | N64: 0 | O64: 5
C65: Kurrikula bërthamë për edukimin në fëmijërinë e hershme, e hartuar dhe miratuar | D65: K4 2023 | E65: PKIE | F65: 1 | G65: 1 | H65: 1 | I65: 1 | J65: 1 | K65: 1 | L65: 1 | M65: 0 | N65: 0 | O65: 7
C66: Korniza Kurrikulare për AAP, e miratuar | D66: K4 2023 | E66: PKIE | F66: 1 | G66: 1 | H66: 1 | I66: 1 | J66: 1 | K66: 1 | L66: 1 | M66: 0 | N66: 0 | O66: 7
C67: Infrastruktura e pershtatur (pjerrinat) në 14 shkolla, brenda dhe jashte objektit | D67: K4 2023 | E67: PKIE | F67: 1 | G67: 1 | H67: 1 | J67: 0 | L67: 1 | M67: 0 | N67: 0 | O67: 4
C68: Së pagu 20 Inspektorë të rinj, të rekrutuar | D68: K4 2023 | E68: PKIE | F68: 1 | G68: 1 | H68: 1 | I68: 1 | J68: 0 | K68: 0 | L68: 1 | M68: 0 | N68: 0 | O68: =SUM(F68:N68) -> 5
C69: Raportet për 400 mësimdhënës dhe 30 institucione arsimore për nivelin e performancës së arritur, të hartuara | D69: K4 2022 | E69: ERA | F69: 1 | G69: 1 | H69: 1 | I69: 1 | J69: 1 | K69: 1 | L69: 1 | M69: 0 | N69: 0 | O69: 7
C70: Roli i koordinatorëve të cilësisë i definuar përmes miratimit të UA | D70: K4 2022 | E70: ERA | F70: 0 | G70: 0 | H70: 0 | I70: 0 | J70: 0 | K70: 0 | L70: 1 | M70: 0 | N70: 0 | O70: 1
C71: Të gjitha shkollat kanë koordinator të cilësisë të trajnuar dhe që dedikojnë numër të caktuar të orëve për çështje të cilësisë | D71: K1 2023 | E71: ERA | F71: 1 | G71: 1 | H71: 1 | I71: 1 | J71: 1 | K71: 1 | L71: 1 | M71: 0 | N71: 0 | O71: 7
C72: Standardet për monitorim të miratuara | D72: K3 2021 | E72: ERA | F72: 1 | G72: 1 | H72: 1 | I72: 1 | J72: 1 | K72: 1 | L72: 1 | M72: 0 | N72: 0 | O72: 7
C73: Miratimi i politikave (rregulloreve) për sigurim të brendshëm të cilësisë | D73: K2 2022 | E73: ERA | F73: 0 | G73: 0 | H73: 0 | I73: 0 | J73: 0 | K73: 0 | L73: 1 | M73: 0 | N73: 0 | O73: 1
C74: Planit Strategjik i AKA-së, i miratuar | D74: K4 2021 | E74: ERA | F74: 1 | G74: 1 | H74: 1 | I74: 1 | J74: 1 | K74: 1 | L74: 1 | M74: 0 | N74: 0 | O74: 7
C75: Njëzetepesë (25) inspektorë të rinj të arsimit, të rekrutuar përmes procesit konkurrues | D75: K4 2021 | E75: ERA | F75: 1 | G75: 1 | H75: 1 | I75: 1 | J75: 1 | K75: 1 | L75: 1 | M75: 0 | N75: 0 | O75: 7
C76: Pesëmbëdhjetë (15) programe të zhvillimit profesional të mësimdhënësve, të miratuara | D76: K1 2022 | E76: ERA | F76: 1 | G76: 1 | H76: 1 | I76: 1 | J76: 1 | K76: 1 | L76: 1 | M76: 0 | N76: 0 | O76: 7
C77: Numri i mësimdhënësve të licencuar | D77: K4 2022 | E77: ERA | F77: 0 | G77: 0 | H77: 0 | I77: 0 | J77: 0 | K77: 0 | L77: 1 | M77: 0 | N77: 0 | O77: 1
C78: Kurrikulat bërthamë për klasën 11 dhe 12 të zhvilluara | D78: K2 2022 | E78: ERA | F78: 1 | G78: 1 | H78: 1 | I78: 1 | J78: 1 | K78: 1 | L78: 1 | M78: 0 | N78: 0 | O78: 7
C79: Pakot mësimore për klasën 10, 11 dhe 12 të zhvilluara | D79: K2 2022 | E79: ERA | F79: 1 | G79: 1 | H79: 1 | I79: 1 | J79: 1 | K79: 1 | L79: 1 | M79: 0 | N79: 0 | O79: 7
C80: Trajnimi i 1,500 mësimdhënësve për zbatimin e Kurrikulës bërthamë | D80: K2 2022 | E80: ERA | F80: 1 | G80: 1 | H80: 1 | I80: 1 | J80: 1 | K80: 1 | L80: 1 | M80: 0 | N80: 0 | O80: 7
C81: Projektligji për Agjencinë e Akreditimit, i miratuar | D81: K3 2021 | E81: ERA | F81: 1 | G81: 1 | H81: 1 | I81: 1 | J81: 1 | K81: 1 | L81: 1 | M81: 0 | N81: 0 | O81: 7
C82: Projektligji për Arsimin e Lartë, i miratuar | D82: K4 2022 | E82: ERA | F82: 1 | G82: 1 | H82: 1 | I82: 1 | J82: 1 | K82: 1 | L82: 1 | M82: 0 | N82: 0 | O82: 7
C83: Rregullorja për organizimin e brendshëm dhe sistematizimin e vendeve të punës në MAShTI, e miratuar | D83: K3 2021 | E83: ERA | F83: 1 | G83: 1 | H83: 1 | I83: 1 | J83: 1 | K83: 0 | L83: 1 | M83: 0 | N83: 0 | O83: 6
C84: Vlerësimi i realizuar dhe rekomandimet e përfshira në PSAK të ri | D84: K4 2021 | E84: ERA | F84: 1 | G84: 1 | H84: 1 | I84: 1 | J84: 1 | K84: 0 | L84: 1 | M84: 0 | N84: 0 | O84: 6
C85: Zbatimi i së paku 3 programeve prioritare trajnuese për secilën nga fushat e arsimit të lartë, para-universitar dhe AAP | D85: K4 2022 | E85: ERA | F85: 1 | G85: 1 | H85: 1 | I85: 1 | J85: 1 | K85: 0 | L85: 1 | M85: 0 | N85: 0 | O85: 6
C86: Menaxhmenti i MAShTI-t i trajnuar për zbatim të instrumentit të mbështetjes direkte buxhetore | D86: K4 2022 | E86: ERA | F86: 1 | G86: 1 | H86: 0 | I86: 0 | J86: 0 | K86: 0 | L86: 1 | M86: 0 | N86: 0 | O86: 3
A87: MASHTI | B87: K25: Shkenca dhe hulumtimet | C87: Menaxhmenti i MAShTI-t i trajnuar për planifikimin dhe menaxhimin e fondeve të jashtme përfshirë menaxhimin e deleguar | D87: K4 2022 | E87: ERA | F87: 1 | G87: 1 | H87: 0 | I87: 0 | J87: 0 | K87: 0 | L87: 1 | M87: 0 | N87: 0 | O87: 3
C88: Projektligji për edukimin në fëmijërinë e hershme 0-6 vjeç, i miratuar | D88: K2 2022 | E88: ERA | F88: 1 | G88: 1 | H88: 1 | I88: 1 | J88: 1 | K88: 1 | L88: 1 | M88: 0 | N88: 0 | O88: 7
C89: UA për detyrat, përgjegjësitë, procedurat dhe kriteret e zgjedhjes së drejtorit dhe të zëvendësdrejtorit të institucionit edukativo-arsimor dhe aftësues para-universitar me përfshirje të aspekteve gjinore, i miratuar | D89: K3 2022 | E89: ERA | F89: 1 | G89: 1 | H89: 1 | I89: 0 | J89: 0 | K89: 0 | L89: 1 | M89: 0 | N89: 0 | O89: 4
C90: UA për Procedurat e përzgjedhjes së personelit edukativo-arsimor në institucionet edukativo-arsimore dhe aftësuese (IEAA) të arsimit para-universitar me përfshirje të aspekteve gjinore, i miratuar | D90: K3 2022 | E90: ERA | F90: 1 | G90: 1 | H90: 1 | I90: 0 | J90: 0 | K90: 0 | L90: 1 | M90: 0 | N90: 0 | O90: 4
C91: Takime informuese në të gjitha DKA-të, të realizuara | D91: K4 2022 | E91: ERA | F91: 1 | G91: 1 | H91: 0 | I91: 0 | J91: 0 | K91: 0 | L91: 1 | M91: 0 | N91: 0 | O91: 3
C92: Trajnime me stafin e 6 qendrave burimore, trajnime me edukatoret e nivelit parashkollor, para-fillor si dhe mësimdhënësit e shkollave fillore, të mesme të ulëta dhe të larta | D92: K3 2022 | E92: ERA | F92: 1 | G92: 1 | H92: 0 | I92: 0 | J92: 0 | K92: 0 | L92: 1 | M92: 0 | N92: 0 | O92: 3
C93: Trajnimi i institucioneve dhe ekipeve vlerësuese komunale dhe parashkollore për përdorim të instrumenteve për vlerësimin e fëmijëve me nevoja të veçanta | D93: K3 2022 | E93: ERA | F93: 0 | G93: 0 | H93: 0 | I93: 0 | J93: 0 | K93: 0 | L93: 1 | M93: 0 | N93: 0 | O93: 1
C94: Financimi i mjaftueshëm i qendrave ekzistuese të të mësuarit | D94: K4 2022 | E94: ERA | F94: 0 | G94: 0 | H94: 0 | I94: 0 | J94: 0 | K94: 0 | L94: 1 | M94: 0 | N94: 0 | O94: 1
C95: 20 komuna dhe shkolla për zbatimin e platformës për parandalim dhe reagim ndaj braktisjes dhe dhunës, të mbështetura | D95: K4 2022 | E95: ERA | F95: 1 | G95: 1 | H95: 1 | I95: 1 | J95: 0 | K95: 0 | L95: 1 | M95: 0 | N95: 0 | O95: 5
C96: Zbatimi i instruksioneve dhe udhëzuesit për themelimin dhe funksionimin e Qendrave Mësimore | D96: K4 2022 | E96: ERA | F96: 0 | G96: 0 | H96: 0 | I96: 0 | J96: 0 | K96: 0 | L96: 1 | M96: 0 | N96: 0 | O96: 1
A97: Përqindja | O97: 58%
A98: Rezultati i përgjithshëm | O98: 6
A99: Ministria e Bujqësisë, Pylltarisë dhe Zhvillimit Rural
A100: MBPZHR | B100: Perkrahja bujqesise dhe zhvillimit rural | C100: Projektligji për organizimin e tregut të përbashkët të produkteve bujqësore, i miratuar | D100: K1 2023 | E100: PKIE | F100: 1 | G100: 1 | H100: 1 | I100: 1 | J100: 1 | K100: 1 | L100: 1 | M100: 1 | N100: 0 | O100: =SUM(F100:N100) -> 8
A101: MBPZHR | B101: Perkrahja bujqesise dhe zhvillimit rural | C101: Projektligji për tokën bujqësore, i miratuar | D101: K4 2023 | E101: PKIE | F101: 1 | G101: 1 | H101: 1 | I101: 1 | J101: 1 | K101: 1 | L101: 1 | M101: 1 | N101: 0 | O101: 8
A102: MBPZHR | B102: Perkrahja bujqesise dhe zhvillimit rural | C102: Programi për bujqësi dhe zhvillim rural 2022-2027, i miratuar | D102: K1 2023 | E102: PKIE | F102: 1 | G102: 1 | H102: 1 | I102: 1 | J102: 0 | K102: 1 | L102: 1 | M102: 0 | N102: 0 | O102: 6
A103: MBPZHR | B103: Perkrahja bujqesise dhe zhvillimit rural | C103: Plani kombëtar për bujqësi organike, i miratuar | D103: K2 2023 | E103: PKIE | F103: 1 | G103: 1 | H103: 0 | I103: 1 | J103: 1 | K103: 1 | L103: 1 | M103: 0 | N103: 0 | O103: =SUM(F103:N103) -> 6
A104: MBPZHR | B104: Avancimi i sigurisë së ushqimit, fitosanitarise dhe veterinarisë | C104: Projektligj i për veterinarinë, i miratuar | D104: K4 2023 | E104: PKIE | F104: 1 | G104: 1 | H104: 1 | I104: 1 | J104: 1 | K104: 1 | L104: 1 | M104: 1 | N104: 0 | O104: =SUM(F104:N104) -> 8
A105: MBPZHR | B105: Avancimi i sigurisë së ushqimit, fitosanitarise dhe veterinarisë | C105: Plani për avancimin e ndërmarrjeve agro-ushqimore, i miratuar | D105: K4 2023 | E105: PKIE | F105: 1 | G105: 1 | H105: 0 | I105: 1 | J105: 0 | K105: 1 | L105: 1 | M105: 1 | N105: 0 | O105: 6
A106: MBPZHR | B106: Avancimi i sigurisë së ushqimit, fitosanitarise dhe veterinarisë | C106: Inventarizimi i peshkut (pilotprojekt) në një (1) pellg lumor, i finalizuar | D106: K4 2023 | E106: PKIE | F106: 1 | G106: 1 | H106: 1 | I106: 1 | J106: 1 | K106: 0 | L106: 1 | M106: 0 | N106: 0 | O106: =SUM(F106:N106) -> 6
A107: Përqindja | O107: 100%
A108: Rezultati i përgjithshëm | O108: 10
A109: Ministria e Punëve të Brendshme
A110: MPB | B110: Ofrimi i sherbimeve cilesore publike | C110: Projektligji për plotësim-ndryshim e ligjeve që përmbajnë procedura të veçanta administrative dhe harmonizimin e tyre me ligjin për procedurën e përgjithshme administrative, faza e dytë, i miratuar | D110: K3 2023 | E110: PKIE | F110: 1 | G110: 1 | H110: 1 | I110: 1 | J110: 1 | K110: 1 | L110: 1 | M110: 1 | N110: 0 | O110: =SUM(F110:N110) -> 8
A111: MPB | B111: Ofrimi i sherbimeve cilesore publike | C111: Së paku 50 shërbime të reja në platformën eKosova, të funksionalizuar | D111: K4 2023 | E111: PKIE | F111: 1 | G111: 1 | H111: 1 | I111: 1 | J111: 1 | K111: 0 | L111: 1 | M111: 1 | N111: 0 | O111: 7
A112: MPB | B112: Ofrimi i sherbimeve cilesore publike | C112: Sistemi ARIS dhe Sistemi Qendror për Regjistrim Civil, të funksionalizuar dhe ndërlidhur | D112: K2 2023 | E112: ERA | F112: 1 | G112: 1 | H112: 1 | I112: 0 | J112: 1 | K112: 0 | L112: 1 | M112: 0 | N112: 0 | O112: =SUM(F112:N112) -> 5
A113: MPB | B113: Ofrimi i sherbimeve cilesore publike | C113: Të paktën 20% të projektligjeve ekzistuese, draft ligjeve, akteve nënligjore dhe udhëzimeve administrative që përmbajnë procedura të veçanta administrative dhe janë pjesë e programit legjislativ, të harmonizuara me LPPA | D113: K4 2021 | E113: ERA | F113: 1 | G113: 1 | H113: 1 | I113: 1 | J113: 1 | K113: 1 | L113: 1 | M113: 0 | N113: 0 | O113: 7
A114: MPB | B114: Ofrimi i sherbimeve cilesore publike | C114: Faza e tretë e digjitalizimit të librave të skanuar, përkatësisht verifikimi i të dhënave dhe lidhja/përputhja e të dhënave, e zbatuar | D114: K4 2022 | E114: ERA | F114: 1 | G114: 1 | H114: 0 | I114: 0 | J114: 1 | K114: 0 | L114: 0 | M114: 0 | N114: 0 | O114: 3
A115: MPB | B115: Ofrimi i sherbimeve cilesore publike | C115: Ofrimi i shërbimeve të gjendjes civile në komunat veriore | D115: K4 2022 | E115: ERA | F115: 1 | G115: 1 | H115: 1 | I115: 1 | J115: 1 | K115: 0 | L115: 1 | M115: 0 | N115: 0 | O115: 6
A116: MPB | B116: Ofrimi i sherbimeve cilesore publike | C116: Rishikimi i kornizës ligjore dhe popullimi i regjistrit qendror me të gjitha të dhënat e qytetarëve, përfshirë ato historike, duke zvogëluar rastet e personave pa dokumente | D116: K4 2022 | E116: ERA | F116: 1 | G116: 1 | H116: 1 | I116: 1 | J116: 1 | K116: 0 | L116: 0 | M116: 0 | N116: 0 | O116: 5
A117: MPB | B117: Krijimi i administrates Evropiane publike | C117: Projektligji për plotësim-ndryshim e Ligjit për Organizimin dhe Funksionimin e Administratës Shtetërore dhe Agjencive të Pavarura, i miratuar | D117: K3 2023 | E117: PKIE | F117: 1 | G117: 1 | H117: 1 | I117: 1 | J117: 0 | K117: 1 | L117: 1 | M117: 0 | N117: 0 | O117: 6
A118: MPB | B118: Krijimi i administrates Evropiane publike | C118: Platforma digjitale për raportimin mbi zbatimin e kornizës strategjike të RAP, e funksionalizuar | D118: K1 2023 | E118: PKIE | F118: 1 | G118: 1 | H118: 1 | I118: 1 | J118: 1 | K118: 0 | L118: 1 | M118: 0 | N118: 0 | O118: 6
A119: MPB | B119: Krijimi i administrates Evropiane publike | C119: Gjashtë (6) rregullore për zbatimin e Ligjit për Zyrtarët Publikë, të plotësuara-ndryshuara | D119: K4 2021 | E119: ERA | F119: 1 | G119: 1 | H119: 1 | I119: 1 | J119: 0 | K119: 1 | L119: 0 | M119: 0 | N119: 0 | O119: 5
A120: MPB | B120: Krijimi i administrates Evropiane publike | C120: Memorandum shpjegues për ligjin për inspektim administrativ, i hartuar | D120: K4 2021 | E120: ERA | F120: 1 | G120: 1 | H120: 0 | I120: 0 | J120: 0 | K120: 0 | L120: 0 | M120: 0 | N120: 0 | O120: 2
A121: MPB | B121: Krijimi i administrates Evropiane publike | C121: Projektligji për inspektimin administrativ, i miratuar | D121: K2 2022 | E121: ERA | F121: 1 | G121: 1 | H121: 1 | I121: 1 | J121: 1 | K121: 1 | L121: 1 | M121: 0 | N121: 0 | O121: 7
A122: MPB | B122: Racionalizimi i agjencive | C122: Projektligji për valën e tretë të racionalizimit të agjencive, i miratuar | D122: K4 2023 | E122: PKIE ERA (K1 2023) | F122: 1 | G122: 1 | H122: 1 | I122: 1 | J122: 1 | K122: 1 | L122: 1 | M122: 0 | N122: 0 | O122: 7
A123: MPB | B123: Racionalizimi i agjencive | C123: Projektligji për valën e dytë të racionalizimit të agjencive, i miratuar | D123: K2 2022 | E123: ERA | F123: 1 | G123: 1 | H123: 1 | I123: 1 | J123: 1 | K123: 1 | L123: 1 | M123: 0 | N123: 0 | O123: 7
A124: MPB | B124: Racionalizimi i agjencive | C124: Koncept dokumenti për valën e tretë të racionalizimit të agjencive, i miratuar | D124: K3 2022 | E124: ERA | F124: 1 | G124: 1 | H124: 1 | I124: 1 | J124: 1 | K124: 1 | L124: 1 | M124: 0 | N124: 0 | O124: 7
A125: MPB | B125: Racionalizimi i agjencive | C125: Koncept dokumenti për valën e katërt të racionalizimit të agjencive, i miratuar | D125: K4 2022 | E125: ERA | F125: 1 | G125: 1 | H125: 1 | I125: 1 | J125: 1 | K125: 1 | L125: 1 | M125: 0 | N125: 0 | O125: 7
A126: MPB | B126: Racionalizimi i agjencive | C126: Plani për racionalizimin e agjencive, i rishikuar | D126: K2 2023 | E126: PKIE | F126: 1 | G126: 1 | H126: 0 | I126: 0 | J126: 0 | K126: 0 | L126: 0 | M126: 0 | N126: 0 | O126: 2
A127: MPB | B127: Zbatimi i politikave efektive te migrimit | C127: Së paku tridhjetekatër (34) prej tridhjetetetë (38) planeve lokale të veprimit për riintegrim, të miratuara | D127: K4 2023 | E127: PKIE | F127: 1 | G127: 1 | H127: 1 | I127: 1 | J127: 1 | K127: 1 | L127: 0 | M127: 0 | N127: 0 | O127: 6
A128: MPB | B128: Zbatimi i politikave efektive te migrimit | C128: Qarkorja informative për zbatimin e politikave për riintegrim të qëndrueshëm, e hartuar | D128: K4 2023 | E128: PKIE | F128: 1 | G128: 1 | H128: 0 | I128: 0 | J128: 1 | K128: 0 | L128: 0 | M128: 0 | N128: 0 | O128: 3
A129: MPB | B129: Zbatimi i politikave efektive te migrimit | C129: Udhëzuesi për monitorimin e integrimit të të huajve, i hartuar | D129: K4 2023 | E129: PKIE | F129: 1 | G129: 1 | H129: 0 | I129: 0 | J129: 0 | K129: 0 | L129: 0 | M129: 0 | N129: 0 | O129: 2
A130: MPB | B130: Zbatimi i politikave efektive te migrimit | C130: Profili i Zgjeruar i Migrimit 2018- 2022, i miratuar | D130: K4 2023 | E130: PKIE | F130: 1 | G130: 1 | H130: 1 | I130: 1 | J130: 1 | K130: 0 | L130: 1 | M130: 0 | N130: 0 | O130: 6
A131: MPB | B131: Zbatimi i politikave efektive te migrimit | C131: Profili i Lehtë i Migrimit 2022, i miratuar | D131: K4 2023 | E131: PKIE | F131: 1 | G131: 1 | H131: 1 | I131: 1 | J131: 1 | K131: 0 | L131: 1 | M131: 0 | N131: 0 | O131: 6
A132: MPB | B132: Zbatimi i politikave efektive te migrimit | C132: Trajnim i trajnerëve (TT) me pjesëmarrjen e së paku dhjetë (10) zyrtarëve të nivelit qendror dhe lokal, për integrimin e të huajve, i mbajtur | D132: K4 2023 | E132: PKIE | F132: 1 | G132: 1 | H132: 0 | I132: 0 | J132: 0 | K132: 0 | L132: 0 | M132: 0 | N132: 0 | O132: 2
A133: MPB | B133: Zbatimi i politikave efektive te migrimit | C133: Së paku pesë (5) trajnime, për 400 zyrtarë të nivelit qendror dhe lokal, për zbatimin e politikave për riintegrimin dhe integrimin e të huajve, të mbajtur | D133: K4 2023 | E133: PKIE | F133: 1 | G133: 1 | H133: 1 | I133: 0 | J133: 0 | K133: 0 | L133: 1 | M133: 0 | N133: 0 | O133: 4
A134: MPB | B134: Zbatimi i politikave efektive te migrimit | C134: Së paku dy (2) zyrtarë në Qendrën e Përkohshme të Pritjes, të sistemuar | D134: K4 2023 | E134: PKIE | F134: 1 | G134: 1 | H134: 1 | I134: 1 | J134: 0 | K134: 0 | L134: 1 | M134: 0 | N134: 0 | O134: 5
A135: MPB | B135: Zbatimi i politikave efektive te migrimit | C135: Së paku 60 gra ose vajza përfituese nga skemat e riintegrimit dhe integrimit të qëndrueshëm | D135: K4 2023 | E135: PKIE | F135: 1 | G135: 1 | H135: 1 | I135: 1 | J135: 0 | K135: 0 | L135: 1 | M135: 0 | N135: 0 | O135: 5
A136: MPB | B136: Zbatimi i politikave efektive te migrimit | C136: Projektligji për shtetësinë, i plotësuar-ndryshuar | D136: K4 2022 | E136: ERA | F136: 1 | G136: 1 | H136: 0 | I136: 0 | J136: 0 | K136: 0 | L136: 1 | M136: 0 | N136: 0 | O136: 3
A137: MPB | B137: Zbatimi i politikave efektive te migrimit | C137: Projektligji për plotësim - ndryshimin e Ligjit për të Huajt, i miratuar | D137: K3 2023 | E137: PKIE | F137: 1 | G137: 1 | H137: 0 | I137: 0 | J137: 0 | K137: 0 | L137: 1 | M137: 0 | N137: 0 | O137: 3
A138: MPB | B138: Zbatimi i politikave efektive te migrimit | C138: Së paku tre (3) trajnime në kuadër të Udhërrëfyesit të bashkëpunimit me EUAA, me pjesëmarrjen e së paku tre (3) zyrtarëve të azilit, të organizuara | D138: K4 2023 | E138: PKIE | F138: 1 | G138: 1 | H138: 0 | I138: 0 | J138: 0 | K138: 0 | L138: 1 | M138: 0 | N138: 0 | O138: 3
A139: MPB | B139: Zbatimi i politikave efektive te migrimit | C139: Projektligji për banesa dhe vendbanime, i plotësuar-ndryshuar | D139: K4 2022 | E139: ERA | F139: 1 | G139: 1 | H139: 1 | I139: 1 | J139: 1 | K139: 1 | L139: 1 | M139: 1 | N139: 0 | O139: 8
A140: MPB | B140: Avancimi i menaxhimit te integruar te kuijve | C140: Programi i TI -së, me opsionin QlikView, për të përfshirë Sistemin e Menaxhimit të Rasteve (CMS) dhe Platformën e Inteligjencës Kufitare (BI), i avancuar | D140: K4 2023 | E140: PKIE | F140: 1 | G140: 1 | H140: 1 | I140: 1 | J140: 1 | K140: 0 | L140: 1 | M140: 0 | N140: 0 | O140: 6
A141: MPB | B141: Avancimi i menaxhimit te integruar te kuijve | C141: Ndërlidhja e NjIP -së, me së paku tre (3) operatorë për të pranuar të dhëna REU, e funksionalizuar | D141: K4 2023 | E141: PKIE | F141: 1 | G141: 1 | H141: 1 | I141: 1 | J141: 1 | K141: 0 | L141: 1 | M141: 0 | N141: 0 | O141: 6
A142: MPB | B142: Avancimi i menaxhimit te integruar te kuijve | C142: Projektligji për plotësim -ndryshim e Ligjit për Kontrollin dhe Mbikëqyrjen e Kufirit Shtetëror, i miratuar | D142: K4 2023 | E142: PKIE | F142: 1 | G142: 1 | H142: 1 | I142: 1 | J142: 1 | K142: 1 | L142: 1 | M142: 1 | N142: 0 | O142: 8
A143: MPB | B143: Avancimi i menaxhimit te integruar te kuijve | C143: Plani i veprimit i QKMK, i zbatuar plotësisht | D143: K4 2021 | E143: ERA | F143: 1 | G143: 1 | H143: 0 | I143: 0 | J143: 1 | K143: 0 | L143: 1 | M143: 0 | N143: 0 | O143: 4
A144: MPB | B144: Luftimi i krimit të organizuar dhe bashkëpunimi policor | C144: Departamenti për Inteligjencë dhe Analizë në PK, i themeluar | D144: K4 2023 | E144: PKIE | F144: 1 | G144: 1 | H144: 1 | I144: 1 | J144: 0 | K144: 1 | L144: 1 | M144: 0 | N144: 0 | O144: 6
A145: MPB | B145: Luftimi i krimit të organizuar dhe bashkëpunimi policor | C145: Së paku njëzet (20) analistë të trajnuar në fushën e analizës | D145: K4 2023 | E145: PKIE | F145: 1 | G145: 1 | H145: 0 | I145: 0 | J145: 0 | K145: 0 | L145: 1 | M145: 0 | N145: 0 | O145: 3
A146: MPB | B146: Luftimi i krimit të organizuar dhe bashkëpunimi policor | C146: Së paku 200 policë sektorialë (policë të lagjes), të caktuar | D146: K4 2023 | E146: PKIE | F146: 1 | G146: 1 | H146: 0 | I146: 0 | J146: 0 | K146: 0 | L146: 0 | M146: 0 | N146: 0 | O146: 2
A147: MPB | B147: Luftimi i krimit të organizuar dhe bashkëpunimi policor | C147: Njësia e Veçante e Hetimeve në PK, e themeluar në përputhje me Ligjin për Prokurorinë Speciale | D147: K4 2023 | E147: PKIE | F147: 1 | G147: 1 | H147: 1 | I147: 1 | J147: 1 | K147: 1 | L147: 1 | M147: 0 | N147: 0 | O147: 7
A148: MPB | B148: Luftimi i krimit të organizuar dhe bashkëpunimi policor | C148: Së paku dy (2) trajnime të përbashkëta polici -prokurori, për së paku dhjetë (10) zyrtarë policorë, për hetime financiare, konfiskimin e aseteve dhe mbrojtjen efektive të dëshmitarëve, të mbajtur | D148: K4 2023 | E148: PKIE | F148: 1 | G148: 1 | H148: 0 | I148: 0 | J148: 0 | K148: 0 | L148: 1 | M148: 0 | N148: 0 | O148: 3
A149: MPB | B149: Luftimi i krimit të organizuar dhe bashkëpunimi policor | C149: Zyrtari ndërlidhës me EUROPOL, i sistemuar | D149: K1 2023 | E149: PKIE | F149: 1 | G149: 1 | H149: 1 | I149: 0 | J149: 1 | K149: 0 | L149: 1 | M149: 0 | N149: 0 | O149: 5
A150: MPB | B150: Luftimi i krimit të organizuar dhe bashkëpunimi policor | C150: Pjesëmarrja në së paku katër (4) aktivitete në kuadër të EMPACT | D150: K4 2023 | E150: PKIE | F150: 1 | G150: 1 | H150: 0 | I150: 0 | J150: 0 | K150: 0 | L150: 1 | M150: 0 | N150: 0 | O150: 3
A151: MPB | B151: Luftimi i krimit të organizuar dhe bashkëpunimi policor | C151: Projektligji për plotësim - ndryshimin e Ligjit për Armë, i miratuar | D151: K4 2023 | E151: PKIE | F151: 1 | G151: 1 | H151: 1 | I151: 1 | J151: 1 | K151: 1 | L151: 1 | M151: 1 | N151: 0 | O151: 8
A152: MPB | B152: Luftimi i krimit të organizuar dhe bashkëpunimi policor | C152: UA për Ekipet e Përbashkëta të Hetimit, i miratuar | D152: K3 2021 | E152: ERA | F152: 1 | G152: 1 | H152: 1 | I152: 1 | J152: 1 | K152: 1 | L152: 1 | M152: 0 | N152: 0 | O152: 7
A153: MPB | B153: Luftimi i krimit të organizuar dhe bashkëpunimi policor | C153: Plani i Përbashkët në mes të Policisë së Kosovës dhe Guardia di Finanza, i hartuar | D153: K4 2021 | E153: ERA | F153: 1 | G153: 1 | H153: 0 | I153: 1 | J153: 1 | K153: 0 | L153: 1 | M153: 0 | N153: 0 | O153: 5
A154: MPB | B154: Luftimi i krimit të organizuar dhe bashkëpunimi policor | C154: Raportet gjashtëmujore për zbatimin e Planit të Përbashkët të Veprimit BE – Ballkan Perëndimor kundër Ekstremizmit të Dhunshëm dhe Terrorizmit, të hartua | D154: K4 2023 | E154: PKIE | F154: 1 | G154: 1 | H154: 0 | I154: 0 | J154: 1 | K154: 0 | L154: 1 | M154: 0 | N154: 0 | O154: 4
A155: MPB | B155: Lufta kunder terrorizmit | C155: Raporti TeSAT për EUROPOL, i hartuar | D155: K4 2023 | E155: PKIE | F155: 1 | G155: 1 | H155: 0 | I155: 1 | J155: 1 | K155: 0 | L155: 1 | M155: 0 | N155: 0 | O155: 5
A156: MPB | B156: Lufta kunder terrorizmit | C156: Strategjia për parandalimin e terrorizmit dhe ekstremizmit të dhunshëm, e miratuar | D156: K4 2021 | E156: ERA | F156: 1 | G156: 1 | H156: 1 | I156: 1 | J156: 1 | K156: 1 | L156: 1 | M156: 0 | N156: 0 | O156: 7
A157: Përqindja | O157: 68%
A158: Rezultati i përgjithshëm | O158: 7
A159: Ministria e Industrisë, Ndërmarrësisë dhe Tregtisë
A160: MINT | C160: Rregullorja për plotësim - ndryshimin e Rregullores (MINT) nr. 01/2018 për Etiketimin dhe Shënjimin e Produkteve të Tekstilit, e miratuar | D160: K3 2023 | E160: PKIE | F160: 1 | G160: 1 | H160: 1 | I160: 0 | J160: 1 | K160: 1 | L160: 1 | M160: 1 | N160: 0 | O160: =SUM(F160:N160) -> 7
A161: MINT | C161: Vendimi për publikimin e listës me titujt dhe referencat e standardeve të harmonizuara për pajisjet elektrike të destinuara për përdorim brenda kufijve të caktuar të tensionit, i miratuar | D161: K3 2023 | E161: PKIE | F161: 1 | G161: 1 | H161: 0 | I161: 0 | J161: 0 | K161: 0 | L161: 1 | M161: 1 | N161: 0 | O161: 4
A162: MINT | C162: Vendimi për publikimin e listës me titujt dhe referencat e standardeve të harmonizuara për pajtueshmërinë elektromagnetike, i miratuar | D162: K3 2023 | E162: PKIE | F162: 1 | G162: 1 | H162: 0 | I162: 0 | J162: 0 | K162: 0 | L162: 1 | M162: 1 | N162: 0 | O162: 4
A163: MINT | C163: Koncept dokumentit për fushën e akreditimit, i miratuar | D163: K3 2023 | E163: PKIE | F163: 1 | G163: 1 | H163: 1 | I163: 0 | J163: 1 | K163: 1 | L163: 1 | M163: 0 | N163: 0 | O163: 6
A164: MINT | C164: Njësia për informimin e bizneseve, e funksionalizuar | D164: K4 2023 | E164: PKIE | F164: 1 | G164: 1 | H164: 1 | I164: 1 | J164: 0 | K164: 0 | L164: 1 | M164: 0 | N164: 0 | O164: 5
A165: MINT | C165: Skema e Akreditimit për trupat certifikuese (EN ISO/IEC 17065), e themeluar dhe e funksionalizuar | D165: K4 2023 | E165: PKIE | F165: 1 | G165: 1 | H165: 1 | I165: 1 | J165: 0 | K165: 0 | L165: 1 | M165: 0 | N165: 0 | O165: 5
A166: MINT | C166: Laboratori i forcës dhe termometrisë, i akredituar | D166: K4 2023 | E166: PKIE | F166: 1 | G166: 1 | H166: 1 | I166: 1 | J166: 1 | K166: 0 | L166: 1 | M166: 0 | N166: 0 | O166: 6
A167: MINT | C167: Së paku dhjetë (10) zyrtarë të rinj në inspektoratin e tregut, të rekrutua | D167: K3 2023 | E167: PKIE | F167: 1 | G167: 1 | H167: 1 | I167: 1 | J167: 0 | K167: 0 | L167: 1 | M167: 0 | N167: 0 | O167: 5
A168: MINT | C168: Së paku pesë (5) zyrtarë të rinj në AMK, të rekrutuar | D168: K2 2023 | E168: PKIE | F168: 1 | G168: 1 | H168: 1 | I168: 1 | J168: 0 | K168: 0 | L168: 1 | M168: 0 | N168: 0 | O168: 5
A169: MINT | C169: Së paku dhjetë (10) zyrtarë të fushës së sigurisë së produkteve, të trajnuar | D169: K3 2023 | E169: PKIE | F169: 1 | G169: 1 | H169: 1 | I169: 1 | J169: 0 | K169: 0 | L169: 1 | M169: 0 | N169: 0 | O169: 5
A170: MINT | C170: Standardi EN ISO/IEC 17020 për laboratorët e metrologjisë ligjore (laboratori i masës, laboratori vëllim rrjedhje, laboratori i matjeve elektrike dhe laboratori i presionit), i zbatuar | D170: K4 2023 | E170: PKIE | F170: 1 | G170: 1 | H170: 1 | I170: 0 | J170: 0 | K170: 0 | L170: 2 | M170: 0 | N170: 0 | O170: 5
A171: MINT | C171: UA për biokarburante, i miratuar | D171: K2 2022 | E171: ERA | F171: 1 | G171: 1 | H171: 1 | I171: 0 | J171: 1 | K171: 1 | L171: 1 | M171: 1 | N171: 0 | O171: 7
A172: MINT | C172: Sistemi online për shitjen e standardeve, i funksionalizuar | D172: K4 2023 | E172: PKIE | F172: 1 | G172: 1 | H172: 0 | I172: 1 | J172: 0 | K172: 0 | L172: 1 | M172: 0 | N172: 0 | O172: 4
A173: MINT | C173: Projektligji për regjistrin e pronarëve përfitues, i miratuar | D173: K4 2023 | E173: PKIE | F173: 1 | G173: 1 | H173: 1 | I173: 1 | J173: 1 | K173: 1 | L173: 1 | M173: 1 | N173: 0 | O173: 8
A174: MINT | C174: Projektligji për shoqëritë tregtare, i miratuar | D174: K4 2023 | E174: PKIE | F174: 1 | G174: 1 | H174: 1 | I174: 1 | J174: 1 | K174: 1 | L174: 1 | M174: 1 | N174: 0 | O174: 8
A175: MINT | C175: Së paku dy (2) sektorë të ri të shërbimeve, të digjitalizuar | D175: K4 2023 | E175: PKIE | F175: 1 | G175: 1 | H175: 1 | I175: 1 | J175: 0 | K175: 0 | L175: 1 | M175: 0 | N175: 0 | O175: 5
A176: MINT | C176: Ueb-faqja për pikën e vetme të kontaktit, e krijuar dhe e lansuar | D176: K4 2023 | E176: PKIE | F176: 1 | G176: 1 | H176: 0 | I176: 0 | J176: 0 | K176: 0 | L176: 1 | M176: 0 | N176: 0 | O176: 3
A177: MINT | C177: Strategjia për zhvillimin e industrisë dhe mbështetje të biznesit, e miratuar | D177: K1 2023 | E177: PKIE | F177: 1 | G177: 1 | H177: 1 | I177: 1 | J177: 1 | K177: 1 | L177: 1 | M177: 0 | N177: 0 | O177: 7
A178: MINT | C178: Agjencia për përkrahjen e ndërmarrjeve, e themeluar dhe funksionalizuar | D178: K3 2023 | E178: PKIE | F178: 1 | G178: 1 | H178: 1 | I178: 1 | J178: 1 | K178: 1 | L178: 1 | M178: 0 | N178: 0 | O178: 7
A179: MINT | C179: Analiza e ndikimit të zonave ekonomike në zhvillimin e NVM, e kryer | D179: K4 2023 | E179: PKIE | F179: 1 | G179: 1 | H179: 0 | I179: 1 | J179: 1 | K179: 0 | L179: 1 | M179: 0 | N179: 0 | O179: 5
A180: MINT | C180: Së paku dyzet (40) biznese përfituese të granteve që u ndihmojnë bizneseve për të rritur kapacitetet prodhuese dhe zbatojnë standardet e kërkuara në tregun e BE -së | D180: K4 2023 | E180: PKIE | F180: 1 | G180: 1 | H180: 0 | I180: 1 | J180: 0 | K180: 0 | L180: 1 | M180: 0 | N180: 0 | O180: 4
A181: MINT | C181: Së paku 20 biznese (10 deri në K2 2022 dhe 10 deri në K2 2023) të subvencionuara në formë të granteve për certifikim të produkteve | D181: K2 2023 | E181: ERA | F181: 1 | G181: 1 | H181: 0 | I181: 1 | J181: 0 | K181: 0 | L181: 1 | M181: 0 | N181: 0 | O181: 4
A182: MINT | C182: Struktura organizative e KIESA-së e miratuar e cila adreson aspektet kryesore të përmirësimit të performancës: ndarjen e përgjegjësive, burimeve financiare dhe kapaciteteve njerëzore | D182: K2 2022 | E182: ERA | F182: 1 | G182: 1 | H182: 1 | I182: 0 | J182: 0 | K182: 1 | L182: 1 | M182: 0 | N182: 0 | O182: 5
A183: MINT | C183: Mekanizmi i ankesës, i krijuar | D183: K1 2022 | E183: ERA | F183: 1 | G183: 1 | H183: 1 | I183: 0 | J183: 0 | K183: 0 | L183: 1 | M183: 0 | N183: 0 | O183: 4
A184: MINT | C184: Programi i kujdesit, i miratuar | D184: K4 2022 | E184: ERA | F184: 1 | G184: 1 | H184: 1 | I184: 0 | J184: 1 | K184: 0 | L184: 1 | M184: 0 | N184: 0 | O184: 5
A185: MINT | C185: Njësia e kujdesit për investitorët, e themeluar | D185: K1 2022 | E185: ERA | F185: 1 | G185: 1 | H185: 1 | I185: 0 | J185: 1 | K185: 0 | L185: 1 | M185: 0 | N185: 0 | O185: 5
A186: MINT | C186: Vlerësimi i performancës së skemave mbështetëse për bizneset të KIESA-s, i realizuar | D186: K4 2022 | E186: ERA | F186: 1 | G186: 1 | H186: 0 | I186: 0 | J186: 0 | K186: 0 | L186: 1 | M186: 0 | N186: 0 | O186: 3
A187: MINT | C187: Skema e Akreditimit për trupat certifikuese (EN ISO/IEC 17065) e themeluar dhe e funksionalizuar | D187: K1 2022 | E187: ERA | F187: 1 | G187: 1 | H187: 0 | I187: 0 | J187: 0 | K187: 0 | L187: 1 | M187: 0 | N187: 0 | O187: 3
A188: MINT | C188: Së paku dy (2) zyrtarë të rekrutuar në Agjencinë e Metrologjisë | D188: K4 2022 | E188: ERA | F188: 1 | G188: 1 | H188: 1 | I188: 1 | J188: 0 | K188: 0 | L188: 1 | M188: 0 | N188: 0 | O188: 5
A189: MINT | C189: Së paku një (1) laborator i ri në Agjencinë e Metrologjisë i themeluar | D189: K4 2022 | E189: ERA | F189: 1 | G189: 1 | H189: 0 | I189: 1 | J189: 0 | K189: 0 | L189: 1 | M189: 0 | N189: 0 | O189: 4
A190: MINT | C190: Njësia për informimin e bizneseve në lidhje me standardet e themeluar | D190: K4 2022 | E190: ERA | F190: 1 | G190: 1 | H190: 0 | I190: 1 | J190: 0 | K190: 0 | L190: 1 | M190: 0 | N190: 0 | O190: 4
A191: MINT | C191: Pika e vetme e kontaktit, e themeluar dhe e funksionalizuar | D191: K1 2022 | E191: ERA | F191: 1 | G191: 1 | H191: 0 | I191: 0 | J191: 0 | K191: 0 | L191: 1 | M191: 0 | N191: 0 | O191: 3
A192: MINT | C192: UA mbi kërkesat e përcaktuara në relacion me komunikimin tregtar përfshi reklamimin apo marketingun, i miratuar | D192: K4 2023 | E192: PKIE | F192: 1 | G192: 1 | H192: 1 | I192: 0 | J192: 1 | K192: 1 | L192: 1 | M192: 0 | N192: 0 | O192: 6
A193: MINT | C193: Programi për pronësi industriale, e miratuar | D193: K1 2023 | E193: PKIE | F193: 1 | G193: 1 | H193: 1 | I193: 1 | J193: 1 | K193: 1 | L193: 1 | M193: 0 | N193: 0 | O193: 7
A194: MINT | C194: Së paku tre (3) trajnime për zyrtarët e Agjencisë së Pronësisë Industriale, të realizuara | D194: K4 2023 | E194: PKIE | F194: 1 | G194: 1 | H194: 0 | I194: 0 | J194: 0 | K194: 0 | L194: 1 | M194: 0 | N194: 0 | O194: 3
A195: MINT | C195: Së paku një (1) produkt i regjistruar sipas treguesit gjeografik | D195: K4 2023 | E195: PKIE | F195: 1 | G195: 1 | H195: 0 | I195: 0 | J195: 0 | K195: 0 | L195: 1 | M195: 0 | N195: 0 | O195: 3
A196: MINT | C196: Dokumenti për politika tregtare, i miratuar | D196: K3 2023 | E196: PKIE | F196: 1 | G196: 1 | H196: 1 | I196: 1 | J196: 1 | K196: 1 | L196: 1 | M196: 0 | N196: 0 | O196: 7
A197: MINT | C197: Një (1) zyrtar në Departamentin e Tregtisë, i rekrutuar | D197: K3 2023 | E197: PKIE | F197: 1 | G197: 1 | H197: 0 | I197: 1 | J197: 0 | K197: 0 | L197: 1 | M197: 0 | N197: 0 | O197: 4
A198: Përqindja | O198: 61%
A199: Rezultati i përgjithshëm | O199: 7
A200: Ministria e Drejtësisë
... 110 more rows

Sheet Criteria 2
A1: Kriteri 2: Planifikimi vs obligimet evropiane Obligimet specifike të Kosovës për BE-në janë të përshkruara në Raportin e BE-së për vendin dhe në konkluzionet e shtatë takimeve të nënkomitetit të MSA-së. Institucionet e Kosovës sigurojnë zbatimin e këtyre obligimeve duke përgatitur Programin Kombëtar për Integrim Evropian dhe Planin e Veprimit të Agjendës së Reformës Evropiane. Megjithatë, sfida është se shpesh ka një hendek midis këtyre dy realiteteve. Planifikimi nga ministritë e linjës shpesh nuk mbulon të gjitha detyrimet e specifikuara të BE-së. Prandaj, qëllimi i këtij vlerësimi është të bëjë dallimin ndërmjet planifikimit më shumë dhe më pak të kujdesshëm të detyrimeve të BE-së nga ministritë e linjës.
A2: Institution | B2: Obligimet evropiane | C2: Masat që adresojnë obligimet evropiane | D2: Vlerësimi | E2: All measures (measures not adressing EU Obligations)
A3: Ministria e Ekonomisë
A4: ME | B4: Miratimi i Strategjisë së Energjisë 2022-2031, në përputhje me Marrëveshjen e Gjelbër Evropiane dhe Axhendën e Gjelbër për Ballkanin Perëndimor, dhe për të siguruar konsistencën e saj me draft Planin Kombëtar të Energjisë dhe Klimës (T2/2022) | C4: Programi i Zbatimit të Strategjisë së Energjisë, i miratuar | D4: 1 | E4: Projektligji për energji, i miratuar
A5: ME | B5: Progresi në finalizimin e Planit Kombëtar të Integruar të Energjisë dhe Klimës (K4/2022) | C5: Plani i Energjisë dhe Klimës 2021-2030, i miratuar | D5: 1 | E5: Projektligji për rregullatorin e energjisë, i miratuar
A6: ME | B6: Miratimi i Ligjit për Burimet e Rinovueshme të Energjisë që prezanton një proces konkurrues tenderimi për projektet e energjisë së rinovueshme në përputhje me legjislacionin për ndihmën shtetërore (K4/2022) | C6: Projektligji për burimet e ripërtëritshme të energjisë, i miratuar Dizajnimi i skemës konkurruese për BRE | D6: 1 | E6: Rregullorja për skemën e re mbështetëse për BRE
A7: ME | B7: Finalizimi i Agjendës Dixhitale të Kosovës 2030 [K2 2022]. | C7: Agjenda Digjitale për Kosovën 2030, e miratua | D7: 1 | E7: Projektligji i plotësuar-ndryshuar për ndërmarrje publike, bazuar në rekomandimet e BE dhe praktikat e mira, i miratuar
A8: ME | B8: Në përputhje me tranzicionin e qëndrueshëm të gjelbër në Evropë, ndërmerrni fazën e dytë të studimit gjithëpërfshirës mbi burimet alternative të qëndrueshme të energjisë (K2/2022) | D8: 0 | E8: Aktet nënligjore të miratuara
A9: ME | B9: Përgatitja e dekomisionimit të pjesëve jofunksionale të Kosovës A, marrja e vendimit për tokën që do të caktohet për deponimin e mbeturinave të rrezikshme dhe përgatitja e një vlerësimi të ndikimit mjedisor dhe social me konsultimin e duhur publik me qëllim marrjen e një vendimi përfundimtar për tokë (K2/2022) | D9: 0 | E9: Njëzet (20) pirgje të rrjetit mobil, ‘5G ready’, të lidhura me infrastrukturë fikse brezgjerë
A10: ME | B10: Përfundoni punët shtesë në mbështetje të projektit të financuar nga BE-ja për Termocentralin Kosova B (T3/2022 Njësia B2, T3/2023 Njësia B1) | D10: 0 | E10: Hapja e tregut të energjisë për konsumatorët e nivelit të tensionit 35 kv dhe 10 kv
A11: ME | B11: Marrja e masave për të planifikuar rimbushjen e Fondit të Efiçiencës së Energjisë në baza vjetore dhe shtrirjen e tij në ndërtesat e banimit dhe ndërmarrjet e vogla dhe të mesme (SME) (T4/2022) | D11: 0 | E11: Kodi i etikës dhe qeverisjes korporative të ndërmarrjeve publike, i miratuar
A12: ME | B12: Miratimi i stimujve të efikasitetit të energjisë për sektorin privat dhe familjet duke u fokusuar në aspektet sociale dhe familjet me të ardhura të ulëta (stimujt shtetërorë) dhe shfrytëzimin e programeve ekzistuese të BE-së në Kosovë (K4/2022). | D12: 0
A13: ME | B13: Përfundoni përafrimin e legjislacionit të Kosovës me Kodin Evropian të Komunikimeve Elektronike, Direktivën e BE-së për Sigurinë e Rrjetit dhe Informacionit dhe Kutinë e Veglave të BE-së për sigurinë kibernetike 5G | D13: 0
A14: ME | B14: Përgatitja e programit për mbrojtjen e konsumatorëve të ndjeshëm dhe përgatitja e një plani dhe masash zbutëse për të mbështetur këta konsumatorë | D14: 0
A15: Përqindja | D15: 36%
A16: Rezultati i përgjithshëm | D16: 4
A17: Ministria e Mjedisit, Planifikimit Hapësinor dhe Infrastrukturës
A18: MMPHI | B18: Të investojë në mirëmbajtjen dhe inspektimet e rrugëve, të organizojë fushata parandaluese dhe të krijojë një mekanizëm monitorues sistematik për mbledhjen e të dhënave të aksidenteve; | C18: Ligji për rrugët, I miratuar | D18: 1 | E18: UA për kontrollimin e rregullsisë teknike të automjeteve në rrugë, i miratuar
A19: MMPHI | B19: Të transpozoj acquis e BE-së në tregun hekurudhor dhe miratimi i ligjit të ri për sigurinë dhe ndëroperueshmërinë hekurudhore; | C19: Ligji për siguri hekurudhore, I miratuar | D19: 1 | E19: Koncept dokumenti për hekurudha, i miratuar
A20: MMPHI | B20: Të miratoj strategjisë për transportin multimodal, e cila duhet të përfshijë ndër të tjera strategjinë e aviacionit civil; vazhdoj përpjekjet për të harmonizuar rregulloren e aviacionit të Kosovës me Marrëveshjen për Zonën e Përbashkët Evropiane të Aviacionit; | C20: Plani i veprimit 2023-2025 për zbatimin e Strategjisë së transportit multimodal 2023-2030, i miratuar | D20: 1 | E20: Koncept dokumenti për transportin e mallrave të rrezikshme, i miratuar
A21: MMPHI | B21: Të miratojë strategjinë e sistemit inteligjent të transportit (ITS) dhe planin e veprimit, të sigurojë kapacitet dhe burime të mjaftueshme për zbatim dhe të vazhdojë përpjekjet për të harmonizuar me acquis e BE-së të drejtat e pasagjerëve në të gjitha llojet e transportit. | C21: Strategjia e sistemit inteligjent të transportit (ITS), e miratuar | D21: 1 | E21: Pritet të miratohet ne Q4 2023
A22: MMPHI | B22: Në fushën e sigurisë rrugore, Kosova duhet të vazhdojë harmonizimin e legjislacionit me acquis të BE-së në fushën e edukimit, fushatave ndërgjegjësuese, zbatimit të aktiviteteve për të arritur rezultate më të mira në përputhje me qëllimet e Kombeve të Bashkuara dhe Bashkimit Evropian për të përgjysmuar numri i vdekjeve dhe lëndimeve në rrugë deri në vitin 2030. | C22: Plani i veprimit për siguri rrugore miratuar në tetor 2020 është përfshirë në programin nacional për siguri rrugore dhe planin e veprimit 2023-2030. | D22: 1 | E22: Strategjia e transportit multimodal 2023-2030, e miratuar me 14.03.2023
A23: MMPHI | B23: Përditësimi i Strategjisë të Transportit Multimodal për të përfshirë elementë të qëndrueshëm dhe të zgjuar, në përputhje me Strategjinë e Lëvizshmërisë së Qëndrueshme dhe të Zgjuar të BE-së dhe BP-së, Marrëveshjen e Gjelbër Evropiane dhe Axhendën e Gjelbër për Ballkanin Perëndimor (K4/2022). | C23: Plani i veprimit 2023-2025 për zbatimin e Strategjisë së transportit multimodal 2023-2030, i miratuar | D23: 1 | E23: Projektligji për Vlerësimin e Ndikimit në Mjedis është miratuar në Kuvend me 15 dhjetor 2022.
A24: MMPHI | B24: Miratimi I ‘Udhëzimi Administrativ për Kornizën për vendosjen e sistemet inteligjente të transportit (ITS)” (K2/2022). | C24: Udhëzimi administrativ për ITS, I miratuar | D24: 1 | E24: Udherrefyesi per Ekonomine Qarkore I miratuar ne mars 2023
A25: MMPHI | B25: Të bëhen përpjekje për të filluar transpozimin e acquis të BE-së për transportin rrugor. (e vazhdueshme) | C25: Projektligji për plotësim-ndryshimin e Ligjit për Transportin Rrugor, i miratuar | D25: 1 | E25: Me datë 17.05.2022, me Nr.prot.2706/22 është miratuar plotësimi dhe ndryshimi i UA nr. 30/2014 per kushtet, menyrat, parametrat dhe vlerat kufizuese te shkarkimit te ujerave te ndotura ne rrjetin e kanalizimit publik dhe ne trupin ujor dhe është publikuar ne websiten e Gazetes Zyrtare të Republikës së Kosovës me 17.05.2022.
A26: MMPHI | B26: Miratimi I Strategjisë Sektoriale të Transportit Multimodal që përfshin aviacionin civil strategjia (K4/2022) | C26: Strategjia e transportit multimodal 2023-2030 | D26: 1 | E26: Ështe formuar Grupi ndërministror për hartimin e projekt marrëveshjes I cili ka harmonizuar draftin final dhe pritet të nënshkruhet ne Q1 të vitit të ardhshem.
A27: MMPHI | B27: Kosova duhet të rrisë angazhimin e saj politik për të adresuar degradimin e mjedisit dhe sfidat e ndryshimeve klimatike dhe të përmirësojë ndjeshëm zbatimin e legjislacionit të saj, për ta harmonizuar atë me Agjendën e Gjelbër për qëllimet e Ballkanit Perëndimor; | C27: Projektligji për Ndryshime Klimatike është miratuar në Qeveri me datën 12.07.2023 me vendim Nr. 02/151. | D27: 1 | E27: Konceptdokumenti është hartuar dhe gjendet në diskutim publik me palet e interesit, sipas përfundimit të procesit te konsultimeve do te procedohet per miratim ne Qeveri.
A28: MMPHI | B28: Të trajtojë në mënyrë efektive çështjen e venddepozitimeve të paligjshme dhe të prezantojë masat e ekonomisë rrethore për reduktimin e mbetjeve, zhvillimin dhe miratimin e planeve ndërkomunale të menaxhimit të integruar të mbetjeve dhe krijimin e prodhuesve të zgjeruar sistemi i përgjegjësisë; | C28: Numri i deponive ilegale në komunat e Kosoves, të identifikuara dhe reduktuara | D28: 1 | E28: Plani i veprimit për siguri rrugore miratuar në tetor 2020 është përfshirë në programin nacional për siguri rrugore dhe planin e veprimit 2023-2030.
A29: MMPHI | B29: Kosova gjithashtu duhet të ndryshojë dhe zbatojë ligjet për vlerësimin e ndikimit në mjedis dhe strategjik | C29: Projektligji per Vleresimin Strategjik Mjedisor, i miratuar | D29: 1 | E29: Ka përfunduar Draft Programi Nacional dhe Plani i Veprimit për siguri në trafikun rrugor 2023-2030, ku pritet të miratohet deri në fund të këtij viti.
A30: MMPHI | B30: Kosova duhet të rrisë kapacitetet në të gjitha nivelet dhe të përcaktojë objektiva dhe afate kohore reale për të siguruar zbatimin efektiv të menaxhimit të saj të integruar të mbeturinave dhe ekonomisë rrethore; | C30: Udhezimi Administrativ per Ambalazh/paketimit dhe mbeturinat e ambalazhimit/paketimit, i miratuar | D30: 1 | E30: Ekipi punues ka vazhduar punën në identifikimin e akseve rrugore me rrezikshmëri të lartë dhe poashtu ka vazhduar puna në përmirësimin e cilësisë së rrjetit rrugor. Ne rruget nacionale dhe rajonale jane vendosur pahite elastike dhe sinjalizimi vertikal dhe horizontal
A31: MMPHI | B31: Autoriteti i pellgut lumor duhet të bëhet funksional si çështje urgjente; | C31: Autoritetit Rajonal i Pellgjeve Lumore është funksional me Rregulloren (qrk)-nr. 05/2017 për organizimin e brendshëm dhe sistematizimin e vendeve të punës të ministrisë së mjedisit dhe planifikimit hapësinor e miratur me 13 qershor 2017 | D31: 1 | E31: Këto direktiva janë përfshirë në koncept dokumentin për hekurudhat dhe pas miratimit të tij nga Qeveria do të transpozohen në projektligjin për plotësimin dhe ndryshimin e ligjit për hekurudhat gjatë vitit 2024.
A32: MMPHI | B32: Miratimi i Ligjit për ndryshimet klimatike (K4/2022) | C32: Projektligji për ndryshime klimatike, i miratuar | D32: 1 | E32: Ështe formuar Grupi ndërministror për hartimin e projekt marrëveshjes I cili ka harmonizuar draftin final dhe pritet të nënshkruhet ne Q1 të vitit të ardhshem.
A33: MMPHI | B33: Forcimi në mënyrë të konsiderueshme dhe urgjente I kapaciteteve administrative (në vazhdimësi) dhe raport tremujor mbi progresin | C33: Numri i inspektorëve të trajnuar për të kontrolluar zbatimin e legjislacionit mjedisor | D33: 1 | E33: E drejta e Avio udhëtarëve është e rregulluar përmes Rregullores e BE-së nr. 261/2004 e cila është transponuar në Kosovë përmes Rregullores MI-2008/5 mbi të Drejtat e Avio Udhëtarëve. Implementimi i Rregullores MI-2008/5 është plotësisht i kompletuar. Projektligji per transporitn ka perfshire pjesene te drejtave te udhetareve ne transportin e udhetareve me autobus sipas rekomandimeve te dalura nga TCT-ja , ndersa pjesa e hekurdhave eshte e transpozua rn e ligjin ekzistues te hekurudhave , megjithate ne kuader te Konceptdokumentit per hekurudha eshte perfshire edhe rregullorja e re per te drejat e udhetareve ne transporitn hekurudhore me kete rats gjate hartimit te proijkeligjit te ri per hekurudha do te perfshihet edhe kjo qeshtje.
A34: MMPHI | B34: Përgatitja e një inventar9 të emetimeve të gazeve serrë që mbulojnë deri në vitin 2020 (K2/2022). | C34: Inventari i gazrave serrë për vitin 2021, i përgatitur | D34: 1 | E34: Është miratuar ne Qeveri Koncept dokumenti per fushen e mjedisit me daten 27.10.2023
A35: MMPHI | B35: Miratimi i Ligjit të ndryshuar për Vlerësimin Strategjik Mjedisor (T4/2022). | C35: Projektligji për plotësim-ndryshimin e Ligjit për Vlerësimin Strategjik Mjedisor, i miratuar | D35: 1 | E35: Është miratuar ne Qeveri Koncept dokumenti per fushen e mjedisit me daten 27.10.2023
A36: MMPHI | B36: Miratimi i Projektligjit për mbrojtjen e ajrit nga ndotja (K2/2022). | C36: Ligji për mbrojtjen e ajrit nga ndotja është miratuar ne Kuvend me 23.06.2022 dhe eshte publikuar ne Gazeten Zyrtare me 07.07.2023 | D36: 1 | E36: Rishikimi i Strategjisë Shtetërore për Ujëra 2023-2027 dhe Plani i Veprimit 2023-2025 është miratuar në Qeveri me vendim Nr.18/ 145 të datës 07.06.2023.
A37: MMPHI | B37: “Miratimi I Projektligjit për Themelimin e Informacionit Hapësinor Kombëtar Infrastruktura (INSPIRE) (K2/2022)." | C37: Ligji për krijimin e infrastrukturës kombëtare të informacionit hapësinor në Republikën e Kosovës eshte miratuar ne Kuvend me 14.06.2022 dhe eshte publikuar ne Gazeten Zyrtare me 28.06.2023 | D37: 1 | E37: Është miratuar ne Qeveri Koncept dokumenti per fushen e mjedisit me daten 27.10.2023
A38: MMPHI | B38: “Finalizimi i krijimit të rrjetit të monitorimit të ujërave nëntokësore për të gjithë territori dhe filloni mbledhjen e të dhënave. (K4/2022)." | C38: Është krijuar rrjeti i monitorimit të ujërave nëntokësore, i cili aktualisht përmban 40 stacione monitoruese në të gjithë territorin e Kosovës. Në stacionet e monitorimit, në të gjitha pellgjet, janë instaluar sensorë për matjet hidrometrike, të cilët njëkohësisht matin dhe ruajnë të dhënat në mënyrë të përhershme gjatë gjithë vitit. Monitorimi i cilësisë fiziko-kimike të ujërave nëntokësore deri më tani është bërë vetëm në 3 pellgjet lumore: Ibër, Lepenc dhe Morava e Binces, dhe ky lloj monitorimi është bërë për herë të parë në Kosovë në maj të vitit 2023 (T2/ 2023). I njëjti monitorim është përsëritur edhe në tetor 2023. Monitorimi do të vazhdojë edhe në të ardhmen. | D38: 1 | E38: Me vendim te Sekretarit te Pergjithshëm te MMPHI eshte themeluar Sekretariati Teknik I Keshillit Kombetar per Ndryshime Klimatike me anetare nga disa institucione te perfshira.
A39: MMPHI | B39: Miratohimi I Projektligjit për Ujërat e Kosovës dhe aktet nënligjore për Kushtet, Mënyrat, parametrat dhe vlerat kufizuese të shkarkimit të ujërave të zeza në publik Rrjeti i Kanalizimeve dhe në Trupin Ujor (K3/2022) | C39: Koncept dokumenti per fushen e ujerave, i miratuar | D39: 1
A40: MMPHI | B40: Hartimi i Koncept Dokumentit për Mbrojtjen e Natyrës (K4/2022) | C40: Koncept dokumenti për fushën e mbrojtjes së natyrës, i miratuar | D40: 1
A41: MMPHI | B41: “Ndrysho Ligjin për Vlerësimin e Ndikimit në Mjedis sipas standardeve të BE-së përfshirja e komponentit social (K2/2022)" | C41: Projektligji për Vlerësimin e Ndikimit në Mjedis është miratuar në Kuvend me 15 dhjetor 2022. | D41: 1
A42: MMPHI | B42: Miratimi i Planit Hapësinor për Parkun Kombëtar “Sharri””, (K2/2023) dhe miratimi i Plani Hapësinor “Bjeshkët e Nemuna” (K4 2022) | C42: Më 07.06.2023 Kuvendi i Republikës së Kosovës e ka miratuar dokumentin e Planit Hapësinor të Parkut Kombëtar “Bjeshkët e Nemuna”. | D42: 1
A43: MMPHI | B43: Miratimi i projektligjit për Parandalimin dhe Kontrollin e Integruar të Ndotjes (K2/2022). | C43: Ligji për parandalimin dhe kontrollin e integruar të ndotjes, i miratuar ne Kuvendin e Kosoves me daten 08.03.2023 (nuk ka qene I planifikuar ne PKIE 2023) | D43: 1
A44: MMPHI | B44: Të rrisë mbulimin e grumbullimit të mbetjeve, të zbatojë reduktimin e gjerë, ndarjen e riciklimit dhe ripërdorimin e mbetjeve, | C44: Fillimi i krijimit të sistemit të rikthimit të depozitës për shishe, plastikë dhe kanaçe | D44: 1
A45: MMPHI | B45: Të zbatohet strategjia e ndryshimeve klimatike dhe planin e veprimit për ndryshimet klimatike; | C45: Plani i Veprimit te Strategjise per Ndryshime Klimatike | D45: 1
A46: MMPHI | B46: Planet e cilësisë së ajrit për zonat në të cilat nivelet e ndotësve tejkalojnë qartë vlerat kufitare duhet të miratohen; | C46: Plani i rishikuar kombëtar për cilësinë e ajrit, i miratuar | D46: 1
A47: MMPHI | B47: Monitorimi dhe menaxhimi efektiv i zonave të mbrojtjes së ujit duhet ende të përmirësohet. Një sistem efektiv monitorimi i ujit, me të dhëna të disponueshme për publikun, duhet të ngrihet urgjentisht.; | C47: Krijimi i Sistemit online të Informacionit Mjedisor | D47: 1
A48: MMPHI | B48: Fillimi i hartimit të një strategjie afatgjatë të dekarbonizimit (K1/2022) | C48: Fillimi i hartimit të strategjisë për dekarbonizim | D48: 1
A49: MMPHI | B49: Miratimi i Strategjisë për Mbrojtjen e Mjedisit dhe Zhvillimin e Qëndrueshëm 2022- 030 (K4/2022) | C49: Strategjia për Mbrojtjen e Mjedisit dhe Zhvillim të Qëndrueshëm 2022-2030, e miratuar | D49: 1
A50: MMPHI | B50: Miratimi I Planit të Veprimit për Cilësinë e Ajrit (K4/2022) dhe planin e cilësisë së ajrit për Prishtinën (K3/2022) | C50: Plani i rishikuar kombëtar për cilësinë e ajrit, i miratuar | D50: 1
A51: MMPHI | B51: Zhvillimi dhe fillimi I zbatimi të planit gjithëpërfshirës të zhvillimit të kapaciteteve institucionale për zbatimin dhe zbatimin e legjislacionit për menaxhimin e mbetjeve. | C51: Trajnimi i nivelit komunal për zbatimin e legjislacionit për menaxhimin e mbeturinave | D51: 1
A52: MMPHI | B52: Fillimi i përgatitjes së programeve të parandalimit të mbetjeve (K2/2022) | C52: Fillimi i zbatimit të projekteve për menaxhimin e mbeturinave të rrezikshme: objektin për ruajtjen e përkohshme të mbetjeve të rrezikshme, dekomisionimi i Kosovës A | D52: 1
A53: MMPHI | B53: Miratimi i planit të menaxhimit “Drini i Bardhë” (K3/2022) dhe identifikimi dhe monitorimi i të tjerave. zonat e rrezikut në lidhje me ujërat nëntokësore dhe sipërfaqësore dhe raportin mbi gjendjen e lojës dhe masat e propozuara korrigjuese (K4/2022) | C53: Plani i menaxhimit për pellgun e lumit Drini i Bardhë, i finalizuar | D53: 1
B54: Fillimi i hartimit të Ligjit për Mbrojtjen e Natyrës (K1/2023) | C54: Plotësim-ndryshimi i Ligjit nr.03/L-233 për mbrojtjen e natyrës | D54: 1
B55: Miratimi dhe hartimi i planeve të detajuara rregulluese për Parkun Kombëtar Sharri dhe për Parku Kombëtar “Bjeshkët e Nemuna” (K2/2022) | C55: Plani hapësinor i parkut kombëtar ‘Bjeshkët e Nemuna’, i miratuar | D55: 1
A56: MMPHI | B56: Finalizimi i hartimit të planeve të menaxhimit të pellgjeve lumore për trupat ujorë të mbetur (d.m.th. Ibër, Morava e Binçës dhe Lepenc) (K2/2024) | D56: 0
A57: MMPHI | B57: Kosova duhet të fillojë të synojë dhe zgjeroj përdorimin e karburanteve alternative, në përputhje me Agjendën e Gjelbër për Ballkanin Perëndimor dhe Strategjinë e Mobilitetit së Zgjuar dhe të Qëndrueshme për Ballkanin Perëndimor. | D57: 0
A58: MMPHI | B58: Duhet të fillojë puna për krijimin e Agjencisë së Sigurisë Rrugore dhe zhvillohet një Strategji gjithëpërfshirëse e Sigurisë Rrugore për 2022-2030, duke përfshirë vendosjen e objektivave dhe mbledhjen e të dhënave më të besueshme të aksidenteve. | D58: 0
A59: MMPHI | B59: Kosova duhet të zbatojë rekomandimet e raportit CONNECTA për të përmirësuar cilësinë e rrjetit rrugor dhe veprimet, siç janë përcaktuar në planin rajonal të veprimit të Traktatit të Komunitetit të Transportit për sigurinë rrugore. | D59: 0
A60: MMPHI | B60: Kosova duhet të sigurojë nënshkrimin dhe zbatimin e marrëveshjes financiare 2020-2024 me INFRAKOS, - Menaxherin e infrastrukturës hekurudhore. | D60: 0
A61: MMPHI | B61: Sektori i aviacionit vazhdon të përballet me një numër sfidash që dalin nga mos anëtarësimi i Kosovës në disa organizata ndërkombëtare të aviacionit civil. | D61: 0
A62: MMPHI | B62: Kosova duhet të vazhdojë harmonizimin me pikat e mbetura të fazës së parë të HPEA. | D62: 0
A63: MMPHI | B63: Transpozimi I egjislacionit kombëtar Direktivën e Këshillit 92/106/EEC mbi vendosja e rregullave të përbashkëta për disa lloje të transportit të kombinuar të mallrave ndërmjet shteteve anëtare. (K3/2022). | D63: 0
A64: MMPHI | B64: Zbatimi I tërësishëm i veprimeve të përcaktuara në planin rajonal të veprimit për Sigurinë Rrugore të miratuar në Tetor 2020 (vazhdimisht)" | D64: 0
A65: MMPHI | B65: Zhvillimi I një strategjie gjithëpërfshirëse kombëtare të sigurisë rrugore për 2021-2030, duke përfshirë vendosja e objektivave (K4/2022) dhe mbledhja e të dhënave më të besueshme të aksidenteve. (K4/2022) | D65: 0
A66: MMPHI | B66: Të reflektohet mbi strukturën institucionale të sigurisë rrugore për adresimin e sfidave sa më shpejt të jetë e mundur dhe të kryhet një vlerësim që përcakton nevojat për përmirësimin e sigurisë rrugore menaxhmenti (duke reflektuar diskutimet në mbledhjen e KS për krijimin e një drejtuesi Agjencia për sigurinë rrugore) (K4-2022) | D66: 0
A67: MMPHI | B67: “Vazhdimi i identifikimit të akseve rrugore me rrezikshmëri të lartë dhe zbatimi i plotë i rekomandimeve për përmirësimin e cilësisë së rrjetit rrugor. (e vazhdueshme)" | D67: 0
A68: MMPHI | B68: “Vazhdimi i transpozimit të acquis të tregut hekurudhor të BE-së dhe, në veçanti, harmonizimi i ligjit për Hekurudhat me Direktivën 2012/34, të ndryshuar me Direktivën 2016/2370 (të vazhdueshme)" | D68: 0
A69: MMPHI | B69: Të sigurohet nënshkrimi i marrëveshjes financiare 2020-2024, të dorëzuar nga INFRAKOS në tetor 2019, ndërmjet Menaxherit të Infrastrukturës dhe autoriteteve kompetente (K1/2023) | D69: 0
A70: MMPHI | B70: Përfundimi I transpozimit të pjesëve të mbetura në fazën 1 të Marrëveshjes Evropiane për Zonën e Përbashkët të Aviacionit (ECAA) (K4/2022) | D70: 0
A71: MMPHI | B71: Vazhdimi I përpjekjeve për të transpozuar acquis të të drejtave të pasagjerëve të BE-së në të gjitha mënyrat e transporti (i vazhdueshëm) | D71: 0
A72: MMPHI | B72: harmonizimi dhe fillimi i zbatimit të dispozitave ligjore për përgjegjësinë mjedisore, dëmin dhe krimin; | D72: 0
A73: MMPHI | B73: Të zbatojë parimin ndotësi paguan dhe të rrisë ndërgjegjësimin e publikut për mbrojtjen e mjedisit; | D73: 0
A74: MMPHI | B74: Kosova ende duhet të harmonizojë mbrojtjen e saj mjedisore me direktivën e përgjegjësisë mjedisore. | D74: 0
A75: MMPHI | B75: Edhe pse legjislacioni i inspektimit mjedisor është riformuluar, ai ende nuk është miratuar dhe ende mungon kapaciteti zbatues. | D75: 0
A76: MMPHI | B76: Koordinimi ndërinstitucional dhe përfshirja e shoqërisë civile duhet të rritet; | D76: 0
A77: MMPHI | B77: Kosova duhet të marrë përsipër përgjegjësitë e ndërgjegjësimit nga komuniteti ndërkombëtar dhe organizatat e shoqërisë civile; | D77: 0
A78: MMPHI | B78: Kosova duhet të zbatojë në mënyrë efektive masat për ndalimin e thëngjillit për ngrohje dhe të fillojë futjen e subvencioneve dhe investimeve për forma të tjera të ngrohjes; | D78: 0
A79: MMPHI | B79: Kuadri ligjor duhet të përfshijë përgjegjësinë e zgjeruar të prodhuesit dhe parimin ndotësi paguan; | D79: 1
A80: MMPHI | B80: Duhet të plotësohen hartat e rrezikut dhe rrezikut nga përmbytjet. Ujërat e zeza dhe shkarkimet e patrajtuara mbeten burimet kryesore të ndotjes së ujit, veçanërisht lumenjve | D80: 0
A81: MMPHI | B81: Masat efektive për të siguruar mbrojtjen e specieve të rrezikuara; | D81: 0
A82: MMPHI | B82: Zbatimi i kornizes ligjore për eksportin dhe importin e kimikateve të rrezikshme; | D82: 0
A83: MMPHI | B83: Krijimi i një qendre për kontrollin e helmimeve kimike; | D83: 0
A84: MMPHI | B84: Instalimin e Shërbimeve Transevropiane për Telematikë ndërmjet Administratave (TESTA) si parakusht për instalimin e sistemit të përbashkët të komunikimit dhe informacionit të urgjencës (CECIS) të Komisionit Evropian; | D84: 0
A85: MMPHI | B85: Korniza strategjike dhe legjislative duhet të përshtatet me qëllimet strategjike të BE-së që rrjedhin nga Axhenda e Gjelbër për Ballkanin Perëndimor; | D85: 0
A86: MMPHI | B86: Zbatimi i plotë i strategjisë për ndryshimet klimatike duhet të shërbejë si udhërrëfyes për arritjen e objektivave të marrëveshjes së Konventës në Kuadër të OKB-së për Ndryshimet Klimatike | D86: 0
A87: MMPHI | B87: Zbatimi i strategjisë së ndryshimeve klimatike dhe planit të veprimit për ndryshimet klimatike | D87: 0
A88: MMPHI | B88: Përgatitja e afateve kohore për përafrimin legjislativ dhe implikimet financiare të veprimet në lidhje me ndryshimet klimatike (K3/2022) | D88: 0
A89: MMPHI | B89: Përmirësimi i bashkëpunimit ndërinstitucional për të siguruar integrimin e ndryshimeve klimatike në sektorë të tjerë, veçanërisht në energji dhe transport, dhe për të forcuar rolin e Këshilli Kombëtar për Ndryshimet Klimatike (në vazhdim) | D89: 0
A90: MMPHI | B90: Përforcimi në mënyrë të konsiderueshme dhe urgjente aktivitetet ndërgjegjësuese (në vazhdimësi) dhe raportoni mbi progresin (tremujore). | D90: 0
A91: MMPHI | B91: Miratimi i projektligjit për mbeturinat (K2/2022) | D91: 0
A92: MMPHI | B92: Përgatitja dhe miratimi I transpozimin në ligjin KO të direktivave të BE-së për rrjedhën e mbetjeve (K1/2023) | D92: 0
A93: MMPHI | B93: Hartimi i Udhëzimit Administrativ për transpozimin e plotë të Direktivës për Nitratet (K1/2023)." | D93: 0
A94: MMPHI | B94: Miratimi i ligjit të ndryshuar për mbrojtjen nga zhurma (K2/2022) | D94: 0
A95: Përqindja | D95: 49%
A96: Rezultati i përgjithshëm | D96: 5
A97: Ministria e Arsimit, Shkencës, Teknologjisë dhe Inovacionit
A98: MASHTI | B98: Kosova duhet te zhvillojë një qasje strategjike për zhvillimin, prioritizimin dhe promovimin e kërkimit shkencor dhe inovacionit dhe të sigurojë shpenzime më të larta të qeverisë për kërkimin shkencor; kërkojnë të stimulojnë investimet nga sektori privat duke plotësuar një Strategji Smart Specializimi | C98: Programi Kombëtar i Shkencës, i hartuar | D98: 1 | E98: UA për plotësim-ndryshimin e UA për Standardet dhe Procedurat e Verifikimit të Standardeve të Profesionit, i miratuar
A99: MASHTI | B99: Gjithashtu duhet te vazhdohet me perpjekjen për të rritur pjesëmarrjen në programin Horizon Europe; | C99: Pikat kombëtare të kontaktit për Programin Horizon, të funksionalizuara | D99: 1 | E99: Mbështetja e qendrave mësimore për romë, ashkalinj dhe egjiptianë
A100: MASHTI | B100: Duhet te behet finalizimi i zbatimit të kornizës së re kurrikulare për arsimin bazë me tekste cilësore dhe duke ofruar trajnime të qëndrueshme për mësuesit; | C100: Kurrikula bërthamë për edukimin në fëmijërinë e hershme, e hartuar dhe miratuar Korniza Kurrikulare për AAP, e miratuar | D100: 1 | E100: Bursat për nxënës dhe studentë romë, ashkalinj dhe egjiptianë, të ndara
A101: MASHTI | B101: Përgatitja dhe miratimi i Planit të ri Strategjik të Arsimit 2022-2026 [K2 202]. | C101: I përfunduar | D101: 1 | E101: Platforma KRIS, e finalizuar dhe lansuar
A102: MASHTI | B102: Të sigurohet zbatimi i suksesshëm i Ligjit për Inspektimin e Arsimit dhe të sigurohet Komisioni me objektivat e synuara për inspektimin e shkollave për vitet në vijim. (K4 2022) | C102: Së pagu 20 Inspektorë të rinj, të rekrutuar | D102: 1 | E102: Infrastruktura e pershtatur (pjerrinat) në 14 shkolla, brenda dhe jashte objektit
A103: MASHTI | B103: Miratimi i Ligjit për Arsimin në Fëmijërinë e Hershme | C103: Projektligji për edukimin në fëmijërinë e hershme 0-6 vjeç, i miratuar | D103: 1
A104: MASHTI | B104: Ligji për Tekstet dhe Materialet Mësimore [Q32022] | C104: Projektligji për Agjencinë e Akreditimit, i miratuar | D104: 1
A105: MASHTI | B105: Ligji për Arsimin e Lartë [K4 2022]. | C105: Projektligji për Arsimin e Lartë, i miratuar | D105: 1
A106: MASHTI | B106: Miratimi i Ligjit për Agjencinë Kosovare të Akreditimit [K2 2022] | C106: Projektligji për Agjencinë e Akreditimit, i miratuar | D106: 1
A107: MASHTI | B107: Vazhdimi i përpjekjeve për të rritur shkallën e regjistrimit në fëmijërinë e hershme të fëmijëve 0-5 vjeç rritja e numrit të objekteve të kujdesit për fëmijët përmes ndërtimit të objekteve të reja si dhe përshtatjes shkolla/hapësira alternative të disponueshme për ofrimin e shërbimeve në edukimin e fëmijërisë së hershme | D107: 0
A108: MASHTI | B108: Kosova duhet te ofrojë të dhëna statistikore për numrin e studiuesve, përqindjen e PBB-së të shpenzuar për kërkimin dhe inovacionin, dhe performancën në lidhje me prioritetet e Zonës Evropiane të Kërkimit. | D108: 0
A109: MASHTI | B109: Cilësia e arsimit duhet të përmirësohet dhe legjislacioni kyç (përfshirë arsimin parashkollor, arsimin e lartë dhe agjencinë e akreditimit) duhet të miratohet nga Kuvendi. | D109: 0
A110: MASHTI | B110: Kosova duhet te rrise ofrimimin e arsimit dhe formimit profesional cilësor për profesionet e kërkuara në funksion të Garancisë për Rininë | D110: 0
A111: MASHTI | B111: Kosova duhet të vazhdojë përpjekjet për t'u ofruar fëmijëve me aftësi të kufizuara qasje në arsim cilësor. | D111: 0
A112: MASHTI | B112: Publikimi i të dhënave të sakta në fushën e arsimit dhe rinisë (përfshirë PBB-në shpenzimet për arsimin), të cilat duhet të jenë të matshme, të gjurmueshme dhe të krahasueshme me kalimin e kohës. Sigurohuni që Sistemi Informativ i Menaxhimit të Arsimit të zhvillohet më tej për të përmbushur nevojat aktuale dhe të ardhshme në këtë fushë.[K4 2022] | D112: 0
A113: MASHTI | B113: “Rritja e administrimit, rritja e pjesëmarrjes dhe zbatimi i ndërkombëtarëve vlerësimet.[K4 2022]" | D113: 0
A114: MASHTI | B114: Vazhdimi i përpjekjeve për të siguruar qasje në arsimin online për të gjithë fëmijët në arsimin bazë, veçanërisht ato nga familjet me të ardhura të ulëta dhe grupet e margjinalizuara. | D114: 0
A115: MASHTI | B115: Vazhdimi i përpjekjeve për rritjen e shkallës së regjistrimit të nxënësve/studentëve me nevoja të veçanta dhe parandalimi braktisja.[K4 2022] | D115: 0
A116: MASHTI | B116: Përmirësimi i cilësisë së arsimit në të gjitha nivelet duke aplikuar në mënyrë sistematike cilësinë ekzistuese mekanizmat e sigurimit, si koordinatorët e cilësisë, inspektimet e shkollave në arsimin bazë dhe të sigurojë monitorim të rreptë të kushteve të Agjencisë së Kosovës për Akreditim për akreditimin e programet e arsimit të lartë.[K4 2022] | D116: 0
A117: MASHTI | B117: Përfundimi i një rishikimi të përgjithshëm të legjislacionit që lidhet me zhvillimin profesional të mësuesve dhe licencimi i mësuesve [K4 2022] me synimin për të ndërmarrë hapa konkretë për të siguruar burime për zhvillimin profesional të mësuesve dhe lidhjen e pagave të mësuesve me trajnimet e tyre dhe performanca [K1 2023] | D117: 0
A118: MASHTI | B118: Vazhdimi i trajtimit të rrezikut të korrupsionit dhe ndikimit politik, në konsultim të ngushtë me studentët dhe raportojnë për veprimet e ndërmarra, duke përfshirë zgjedhjen e bazuar në merita të mësimdhënies dhe stafi drejtues [K4 2022] | D118: 0
A119: MASHTI | B119: Rritja e pjesëmarrjes në programin e ri Erasmus+.[K4 2022] | D119: 0
A120: MASHTI | B120: Vazhdimi I sigurimit të të dhëna vestatistikore (sipas Manualit Frascati të OECD) mbi shuma, dhe Përqindja e PBB-së, e shpenzuar për Hulumtim dhe Inovacion, dhe për performancë lidhur me Prioritetet e Zonës Evropiane të Kërkimit | D120: 0
A121: MASHTI | B121: Të ofrohen treguesit e nevojshëm statistikorë që Kosova të marrë pjesë në Evropian Tabela e rezultateve të inovacionit (K4, 2022) | D121: 0
A122: MASHTI | B122: Forcimi i pjesëmarrjes në Horizon Europe për të arritur të paktën nivelet e vitit 2019 dhe merrni pjesë në ato kyçe Iniciativat Horizon Europe (ESS, EOSC, EuroHPC), në veçanti EuroHPC Joint Ndërmarrja (K2, 2022) dhe bashkimi në raundin e 11-të të Anketës Sociale Evropiane (K2, 2022) | D122: 0
A123: MASHTI | B123: Përfundimi i Procesit te Zbulimit të Sipërmarrjes të Strategjisë së Specializimit të zgjuar procesi [K4 2022]. | D123: 0
A124: MASHTI | B124: Pjesëmarrja në masat rajonale të inovacionit. | D124: 0
A125: Përqindja | D125: 33%
A126: Rezultati i përgjithshëm | D126: 4
A127: Ministria e Bujqësisë, Pylltarisë dhe Zhvillimit Rural
A128: MBPZHR | B128: Miratimi i Programit të Bujqësisë dhe Zhvillimit Rural | C128: Programi për bujqësi dhe zhvillim rural 2022-2027, i miratuar | D128: 1 | E128: Plani kombëtar për bujqësi organike, i miratuar
A129: MBPZHR | B129: Projektligji për tokën bujqësore | C129: Projektligji për tokën bujqësore, i miratuar | D129: 1 | E129: Projektligj i për veterinarinë, i miratuar
A130: MBPZHR | B130: Miratimi i Ligjit për organizimin e tregut të përbashkët | C130: Projektligji për organizimin e tregut të përbashkët të produkteve bujqësore, i miratuar | D130: 1 | E130: Plani për avancimin e ndërmarrjeve agro-ushqimore, i miratuar
A131: MBPZHR | B131: Përfundimi I procesit për të krijuar një inventar të llojeve të peshqve në një zonë pilot | C131: Inventarizimi i peshkut (pilotprojekt) në një (1) pellg lumor, i finalizuar | D131: 1
A132: MBPZHR | B132: Sigurimi i burimeve adekuate financiare për Agjencinë e Ushqimit dhe Veterinarisë së Kosovës (AVUK) (K3 2022) në mënyrë që ndër të tjera të ketë një numër adekuat të inspektorëve | D132: 0
A133: MBPZHR | B133: Miratimi I Udhëzimeve Administrative për nënproduktet shtazore që transpozojnë Rregulloren (EC) 1069/2009 (T3 2022) dhe Rregulloren zbatuese (EC) 142/2011 (T4 2022); | D133: 0
A134: MBPZHR | B134: Zbatimi i aspekteve të Strategjisë së Zhvillimit Rural 2022-2028 në lidhje me përmirësimin e objekteve bujqësore ushqimore; | D134: 0
A135: MBPZHR | B135: Vazhdimi i forcimit të mekanizmave të bashkëpunimit me homologët serbë për të luftuar kundër tregtisë ilegale të kafshëve të gjalla dhe produkteve agroushqimore (raportet tremujore që do t'i dërgohen Komisionit). | D135: 0
A136: MBPZHR | B136: Të finalizohet dhe të miratohet UA për verifikimin e produkteve bujqësore dhe ushqimore (K3 2022) dhe të vazhdohet me regjistrimin e djathit Sharri dhe verës Rahoveci si tregues gjeografikë (K4 2022) | D136: 0
A137: MBPZHR | B137: Finalizimi dhe miratimi i Ligjit të ri për Verërat | D137: 0
A138: MBPZHR | B138: Miratimi i Ligjit për pijet alkoolike | D138: 0
A139: MBPZHR | B139: Miratimi i koncept dokumentit për rregullimin e tokës | D139: 0
A140: MBPZHR | B140: Fillimi i projektit FADN për 2021-24 | D140: 0
A141: MBPZHR | B141: Përdorimi në mënyrë efektive i rezultateve të arritura me ndihmën e BE-së, pasi ato janë prodhuar me qëllim të sigurimit të zhvillimit efektiv dhe të qëndrueshëm të sektorit agro-rural të Kosovës. | D141: 0
A142: MBPZHR | B142: Rritja e përpjekjeve për të forcuar kapacitetet administrative për të siguruar përafrimin e duhur legjislativ; | D142: 0
A143: MBPZHR | B143: Përafrimi i mëtejshëm i kontrollit të peshkimit, si dhe akuakulturës, politikave të tregut dhe mbledhjes së të dhënave me acquis; | D143: 0
A144: MBPZHR | B144: Përgatitja e aplikacioneve TAIEX për metodologjinë e mbledhjes së të dhënave dhe avancimit të legjislacionit dhe politikave të peshkimit | D144: 0
A145: Përqindja | D145: 24%
A146: Rezultati i përgjithshëm | D146: 3
A147: Ministria e Punëve të Brendshme
A148: MPB | B148: Vazhdimi i zbatimit të veprimeve prioritare të marrëveshjes zbatuese të Planit të Përbashkët të Veprimit ndërmjet BE-së dhe Ballkanit Perëndimor. | C148: Raportet gjashtëmujore për zbatimin e Planit të Përbashkët të Veprimit BE – Ballkan Perëndimor kundër Ekstremizmit të Dhunshëm dhe Terrorizmit, të hartua | D148: 1 | E148: Të paktën 20% të projektligjeve ekzistuese, draft ligjeve, akteve nënligjore dhe udhëzimeve administrative që përmbajnë procedura të veçanta administrative dhe janë pjesë e programit legjislativ, të harmonizuara me LPPA
A149: MPB | B149: Përmirësimi i sistemeve të menaxhimit të të dhënave të migracionit dhe azilit, duke përfshirë futjen e një mekanizmi të harmonizuar dhe të qëndrueshëm të regjistrimit dhe mbledhjes së të dhënave biometrike, i cili është në përputhje me standardet e zbatueshme ndërkombëtare dhe të BE-së, si dhe garanton ndërkomunikueshmëri/ndërveprim të sistemeve të menaxhimit të informacionit dhe bazat e të dhënave duke përfshirë në nivel rajonal, nëpërmjet zhvillimit të mëtejshëm të Sistemit të Informacionit të Menaxhimit të Migracionit. Sigurimi i trajnimeve për ngritjen e kapaciteteve për zyrtarët qeveritarë (vendorë dhe kombëtarë) për menaxhimin e të dhënave. Rritja graduale e stafit ekspertë/specializuar të institucioneve përkatëse në fushën e migracionit dhe azilit në procedurat transparente të punësimit me fokus kompetencën dhe ekspertizën e kërkuar teknike. | C149: Programi i TI -së, me opsionin QlikView, për të përfshirë Sistemin e Menaxhimit të Rasteve (CMS) dhe Platformën e Inteligjencës Kufitare (BI), i avancuar Së paku pesë (5) trajnime, për 400 zyrtarë të nivelit qendror dhe lokal, për zbatimin e politikave për riintegrimin dhe integrimin e të huajve, të mbajtur Trajnim i trajnerëve (TT) me pjesëmarrjen e së paku dhjetë (10) zyrtarëve të nivelit qendror dhe lokal, për integrimin e të huajve, i mbajtur | D149: 1 | E149: Memorandum shpjegues për ligjin për inspektim administrativ, i hartuar
A150: MPB | B150: Të vazhdohen programet në mbështetje të riintegrimit të qytetarëve të Kosovës dhe të sigurohet që ato të jenë gjithëpërfshirëse dhe të financuara në mënyrë adekuate. Krijimi i mekanizmit funksional të referimit ku të gjithë të kthyerit kanë akses në informacionin e disponueshëm për mbështetjen e riintegrimit. | C150: Së paku 60 gra ose vajza përfituese nga skemat e riintegrimit dhe integrimit të qëndrueshëm | D150: 1 | E150: Së paku tridhjetekatër (34) prej tridhjetetetë (38) planeve lokale të veprimit për riintegrim, të miratuara
A151: MPB | B151: Të sigurohet që masat e hershme të integrimit për refugjatët të merren parasysh duke përfshirë mjetet e mjaftueshme materiale dhe financiare për të mbështetur integrimin e qëndrueshëm ligjor, social, ekonomik dhe kulturor të të huajve siç parashikohet nga Rregullorja për Integrimin e të Huajve dhe Udhëzimet. Mbrojtja e fëmijëve dhe aksesi në arsim për aplikantët dhe refugjatët, duke përfshirë kurset e gjuhës, skemat e qirasë, përfitimet sociale duke përfshirë refugjatët e moshuar, aksesin në tregun e punës dhe mundësitë për mbështetje te vetja duhet të kenë përparësi. | C151: Udhëzuesi për monitorimin e integrimit të të huajve, i hartuar Qarkorja informative për zbatimin e politikave për riintegrim të qëndrueshëm, e hartuar | D151: 1 | E151: Profili i Zgjeruar i Migrimit 2018- 2022, i miratuar
A152: MPB | B152: Policia e Kosovës, të emërojë dhe të dërgojë zyrtarin ndërlidhës të PK-së në Shtabin e Europolit | C152: Zyrtari ndërlidhës me EUROPOL, i sistemuar | D152: 1 | E152: Ndërlidhja e NjIP -së, me së paku tre (3) operatorë për të pranuar të dhëna REU, e funksionalizuar
A153: MPB | B153: Vazhdimi i procesit të dixhitalizimit (verifikimi i të dhënave dhe lidhja/përputhja e të dhënave), në përputhje me afatet kohore të dakorduara në kuadër të programeve të asistencës së BE-së, në mënyrë që të sigurohet finalizimi i një sistemi të sigurt, të qëndrueshëm dhe të besueshëm të gjendjes civile, gjithëpërfshirës nga të gjitha burimet e disponueshme të të dhënave, si si dhe për të mbështetur lidhjen e tij me sisteme të tjera përkatëse (d.m.th. adresat, ID-të, pasaportat). | C153: Faza e tretë e digjitalizimit të librave të skanuar, përkatësisht verifikimi i të dhënave dhe lidhja/përputhja e të dhënave, e zbatuar | D153: 1 | E153: Plani i veprimit i QKMK, i zbatuar plotësisht
A154: MPB | B154: Vazhdimi i përmirësimit të cilësisë dhe besueshmërisë së të dhënave të përpunuara dhe të regjistruara në Sistemin Qendror të Regjistrimit të Gjendjes Civile, duke përfshirë strukturën dhe dizajnin e bazës së të dhënave. | C154: Sistemi ARIS dhe Sistemi Qendror për Regjistrim Civil, të funksionalizuar dhe ndërlidhur | D154: 1 | E154: Së paku njëzet (20) analistë të trajnuar në fushën e analizës
A155: MPB | B155: Të përmirësojë llogaridhënien në sektorin publik duke: (1) zbatimin efektiv të Ligjit për Organizimin dhe Funksionimin e Administratës Shtetërore dhe Agjencive të Pavarura dhe (2) duke përshpejtuar riorganizimin e vazhdueshëm të agjencive duke krijuar një organ drejtues dhe duke miratuar një plan veprimi të rishikuar për racionalizim | C155: Projektligji për valën e tretë të racionalizimit të agjencive, i miratuar Projektligji për valën e dytë të racionalizimit të agjencive, i miratuar Koncept dokumenti për valën e tretë të racionalizimit të agjencive, i miratuar Koncept dokumenti për valën e katërt të racionalizimit të agjencive, i miratuar Plani për racionalizimin e agjencive, i rishikuar | D155: 1 | E155: Plani i Përbashkët në mes të Policisë së Kosovës dhe Guardia di Finanza, i hartuar
A156: MPB | B156: Forcimi i bashkëpunimit multidisiplinar në procedurat hetimore përmes komunikimit ndërinstitucional dhe shkëmbimit të informacionit, inspektimeve të përbashkëta dhe ekipeve hetimore shumëdisiplinore | D156: 0 | E156: Projektligji për plotësim-ndryshim e ligjeve që përmbajnë procedura të veçanta administrative dhe harmonizimin e tyre me ligjin për procedurën e përgjithshme administrative, faza e dytë, i miratuar
A157: MPB | B157: Krijimi i Zyrës së Koordinatorit Kombëtar me burime adekuate financiare dhe njerëzore | D157: 0 | E157: Së paku 50 shërbime të reja në platformën eKosova, të funksionalizuar
A158: MPB | B158: Krijimi dhe funksionalizimi i një strukture/mekanizmi në kuadër të Ministrisë së Punëve të Brendshme me buxhetin dhe burimet e nevojshme, kështu që filloni me trajnimin e stafit dhe hartimin e akteve nënligjore dhe dokumenteve të tjera të nevojshme për mbrojtjen e infrastrukturës kritike. | D158: 0 | E158: Ofrimi i shërbimeve të gjendjes civile në komunat veriore
A159: MPB | B159: Të forcohet bashkëpunimi dhe koordinimi ndërinstitucional në fushën e migracionit dhe azilit, veçanërisht ndërmjet institucioneve të ndryshme të politikës dhe sigurisë, duke përfshirë ndërveprueshmërinë e sistemeve të TI-së. Të forcohet dixhitalizimi i menaxhimit të kufirit duke zhvilluar përmirësimet e nevojshme të sistemeve përkatëse të TI-së dhe duke prokuruar pajisje të përshtatshme. | D159: 0 | E159: Rishikimi i kornizës ligjore dhe popullimi i regjistrit qendror me të gjitha të dhënat e qytetarëve, përfshirë ato historike, duke zvogëluar rastet e personave pa dokumente
A160: MPB | B160: Merrni hapat e nevojshëm për të funksionalizuar dhe siguruar qëndrueshmërinë e qendrës së re të pritjes për akomodimin e përkohshëm të pritjes, regjistrimin biometrik dhe identifikimin e personave vulnerabël, duke përfshirë proceset efektive të referimit | D160: 0 | E160: Projektligji për plotësim-ndryshim e Ligjit për Organizimin dhe Funksionimin e Administratës Shtetërore dhe Agjencive të Pavarura, i miratuar
A161: MPB | B161: Të përmirësohen më tej praktikat e ndjeshme ndaj mbrojtjes për kthimin dhe ripranimin e migrantëve të parregullt dhe azilkërkuesve të dështuar në vendet e tyre të origjinës. Legjislacioni i kthimit të jetë në përputhje me strategjinë e re të BE-së, e cila synon rritjen e numrit të kthimeve vullnetare dhe përmirësimin e cilësisë së mbështetjes së ofruar për të kthyerit. | D161: 0 | E161: Platforma digjitale për raportimin mbi zbatimin e kornizës strategjike të RAP, e funksionalizuar
A162: MPB | B162: Të përmirësohen kushtet e jetesës në Qendrën e Paraburgimit për të Huaj dhe të merret parasysh punësimi i personelit administrativ shtesë. Eksploroni opsionin e ndryshimit të qëllimit të Qendrës aktuale të Paraburgimit për të Huajt në Qendër Tranzite për të siguruar një trajtim të sigurt dhe njerëzor pa elemente që sjellin paraburgim në përputhje me ligjin për azilin që parashikon alternativa ndaj ndalimit | D162: 0 | E162: Gjashtë (6) rregullore për zbatimin e Ligjit për Zyrtarët Publikë, të plotësuara-ndryshuara
A163: MPB | B163: Për sa i përket procedurës së azilit, kërkohet ndërtim i mëtejshëm i kapaciteteve të menaxherëve të rasteve të Përcaktimit të statusit të refugjatit (RSD) për të siguruar standarde cilësore të menaxhimit të rasteve dhe vendimmarrjes për azilin, aplikimin e standardizuar të Informacionit të Vendit të Origjinës (COI) dhe përdorimin e të përshpejtuar dhe të thjeshtuar. procedurat si për rastet qartazi të bazuara ashtu edhe ato të pabazuara gjatë procedurave të para-pranimit/skanimit në kufi. Krijimi i procedurave në lidhje me të miturit e pashoqëruar (BIA/BID) duke përfshirë përcaktimin e moshës, kujdestarinë ligjore dhe komunikimin duhet t'i jepet përparësi. | D163: 0 | E163: Projektligji për inspektimin administrativ, i miratuar
A164: MPB | B164: Të shtohen përpjekjet për të shpërbërë rrjetet e kontrabandës (përqendrimi te të miturit e pashoqëruar dhe të ndarë) përmes rritjes së monitorimit, raportimit dhe hetimit të rrjeteve të mundshme të kontrabandës dhe kontrabandistëve që trajtojnë migrantët dhe personat që kanë nevojë për mbrojtje ndërkombëtare në Kosovë. | D164: 0 | E164: Profili i Lehtë i Migrimit 2022, i miratuar
A165: MPB | B165: Sigurimi i potencialit të plotë të Qendrës Kombëtare për Menaxhimin e Kufirit duke zbatuar plotësisht Planin e Veprimit të MKKM të shkurtit 2019 dhe përditësimet përkatëse. NCBM është një bazë për Qendrën Kombëtare të Koordinimit të së ardhmes së afërt (QKK) bazuar në rregulloren EUROSUR. Në këtë drejtim, flukset e informacionit ndërmjet QKBM-së, të gjithë komponentëve të tjerë të analizës së rrezikut dhe strukturave të kontrollit dhe komandës së Policisë së Kosovës do të zbatohen në mënyrë efektive (online) për të lehtësuar pasqyrën gjithëpërfshirëse të situatës dhe reagimin e shpejtë operacional. | D165: 0 | E165: Projektligji për shtetësinë, i plotësuar-ndryshuar
A166: MPB | B166: Rritja e kapaciteteve operacionale dhe analitike për të adresuar dhe zbutur sfidat e sigurisë kufitare dhe krimit të organizuar transnacional në kontekstin e përzier të migracionit. Zhvilloni korniza të përshtatshme operacionale për mashtrimin e identitetit dhe dokumenteve të udhëtimit dhe lehtësoni zhvillimin dhe zbatimin e sistemeve API/PNR gjithashtu duke mbështetur përpunimin e ligjeve kombëtare dhe kapacitetet operacionale. | D166: 0 | E166: Projektligji për plotësim - ndryshimin e Ligjit për të Huajt, i miratuar
A167: MPB | B167: Forcimi i sistemit të menaxhimit të kufijve të ndjeshëm ndaj mbrojtjes përmes bashkëpunimit ndër-rajonal duke përfshirë shkëmbimin e rregullt të informacionit, si dhe me agjencitë e BE-së që luajnë një rol të rëndësishëm në zbatimin e menaxhimit të kufijve të ndjeshëm ndaj mbrojtjes si Agjencia e Azilit të Bashkimit Evropian (EUAA) dhe Agjencia Evropiane e Rojës Kufitare dhe Bregdetare (FRONTEX) | D167: 0 | E167: Së paku tre (3) trajnime në kuadër të Udhërrëfyesit të bashkëpunimit me EUAA, me pjesëmarrjen e së paku tre (3) zyrtarëve të azilit, të organizuara
A168: MPB | B168: Rritja e ndërgjegjësimit për trafikimin e qenieve njerëzore. Sigurimi i qëndrueshmërisë financiare të strehimoreve për viktimat e trafikimit dhe të mbijetuarit e dhunës seksuale dhe të dhunës me bazë gjinore. Rritja e bashkëpunimit rajonal për të luftuar THB-në. Vazhdoni trajnimet specifike për TQNJ-në për reaguesit e parë, duke përfshirë Policinë e Kosovës dhe zyrtarët e angazhuar në qendrat e azilit, pritjes dhe paraburgimit se si të identifikojnë dhe raportojnë viktimat e qenieve njerëzore (duke përfshirë në mesin e azilkërkuesve, refugjatëve dhe migrantëve). | D168: 0 | E168: Projektligji për banesa dhe vendbanime, i plotësuar-ndryshuar
A169: MPB | B169: Funksionalizimi i Observatorit Kombëtar të Drogës në kuadër të Ministrisë së Punëve të Brendshme | D169: 0 | E169: Projektligji për plotësim -ndryshim e Ligjit për Kontrollin dhe Mbikëqyrjen e Kufirit Shtetëror, i miratuar
A170: MPB | B170: Sigurimi i planifikimit adekuat buxhetor dhe ngritjes së kapaciteteve për të mbështetur procesin e vazhdueshëm të riorganizimit të brendshëm dhe sistematizimit të vendeve të punës | D170: 0 | E170: Së paku 200 policë sektorialë (policë të lagjes), të caktuar
A171: MPB | B171: Përmirësimi i funksionimit të shërbimit civil duke përshpejtuar zbatimin e Ligjit për Zyrtarët Publikë në përputhje me vendimin përkatës të Gjykatës Kushtetuese dhe me parimet e RAP-it, duke organizuar njëkohësisht rekrutues të centralizuar | D171: 0 | E171: Njësia e Veçante e Hetimeve në PK, e themeluar në përputhje me Ligjin për Prokurorinë Speciale
A172: MPB | B172: Zhvillimi i një skeme koherente pagash në përputhje me parimet e meritës, drejtësisë dhe barazisë në shërbimin civil, duke finalizuar organizimin e brendshëm të ministrive, duke vendosur klasifikime të vendeve të punës dhe sistematizimin e vendeve të punës në shërbimin civil, të cilat mundësojnë kushte për një skemë koherente pagash; | D172: 0 | E172: Së paku dy (2) trajnime të përbashkëta polici -prokurori, për së paku dhjetë (10) zyrtarë policorë, për hetime financiare, konfiskimin e aseteve dhe mbrojtjen efektive të dëshmitarëve, të mbajtur
A173: Përqindja | D173: 32%
A174: Rezultati i përgjithshëm | D174: 4
A175: Ministria e Industrisë, Ndërmarrësisë dhe Tregtisë
A176: MINT | B176: Continue preparations to establish the Point of Single Contact, including human and IT resources (Q4 2022); | C176: Pika e veKe e kontaktit, e themeluar dhe e funksionalizuar Ueb-faqja për pikën e veKe të kontaktit, e krijuar dhe e lansuar | D176: 1 | E176: Vendimi për publikimin e listës me titujt dhe referencat e standardeve të harmonizuara për pajtueshmërinë elektromagnetike, i miratua
A177: MINT | B177: Increase the human resource capacity of the Ministry of Industry, Entrepreneurship and Trade, notably as regards inspectors, to better protect consumers. | C177: Së paku dhjetë (10) zyrtarë të rinj në inspektoratin e tregut, të rekrutuar Së paku dhjetë (10) zyrtarë të fushës së sigurisë së produkteve, të trajnuar | D177: 1 | E177: Së paku një (1) laborator i ri në Agjencinë e Metrologjisë i themeluar
A178: MINT | B178: Përafrimi i zhvillimeve të ardhshme në legjislacionin për të drejtën e shoqërive tregtare me Direktivën EU/2017/1132 (kodifikimi) dhe dispozitat e tjera të BE-së në fushat ku kishte boshllëqe ose përafrim të pjesshëm në Ligjin për Shoqëritë Tregtare, duke përfshirë kërkesat minimale për kapital, aspektet e zbulimit të informacionit për kompanitë dhe degët e tyre, bashkimet ndërkufitare, mbrojtja e aksionarëve dhe ofertat për blerje | C178: Projektligji për shoqëritë tregtare, i miratuar | D178: 1 | E178: Njësia për informimin e bizneseve në lidhje me standardet e themeluar
A179: MINT | B179: Miratimi i projektligjit për shoqëritë tregtare (K1 2023) duke përfshirë përafrimin e tij me acquis më të fundit të BE-së (Direktiva 2017/828, Direktiva 2019/1151 dhe Direktiva 2019/2121); | C179: Projektligji për shoqëritë tregtare, i miratuar | D179: 1 | E179: Së paku dy (2) zyrtarë të rekrutuar në Agjencinë e Metrologjisë
A180: MINT | B180: Finalizimi i zbatimit të skemave të reja të akreditimit (organet certifikuese K4 2022). Vazhdohet me përfshirjen e skemave të reja (të vazhdueshme). | C180: Skema e Akreditimit për trupat certifikuese (EN ISO/IEC 17065), e themeluar dhe e funksionalizuar | D180: 1 | E180: Dokumenti për politika tregtare, i miratuar
A181: MINT | B181: Finalizimi i Strategjisë për Mbështetjen e Biznesit dhe Zhvillimin e Industrisë dhe Strategjinë e Inovacionit dhe Ndërmarrësisë duke përfshirë masat që synojnë të adresojnë deficitin tregtar të Kosovës në mallra dhe të zgjerojnë tregtinë në shërbime (K4 2022). | C181: Strategjia për zhvillimin e industrisë dhe mbështetje të biznesit, e miratuar | D181: 1 | E181: Rregullorja për plotësim - ndryshimin e Rregullores (MINT) nr. 01/2018 për Etiketimin dhe Shënjimin e Produkteve të Tekstilit, e miratuar
A182: MINT | B182: Konsultimi dhe miratimi i një strategjie për të mbështetur mjedisin e biznesit dhe zhvillimin industrial të Kosovës (K4 2022). Në përgatitjen e asaj strategjie, Kosova duhet të marrë parasysh komentet e dhëna nga BE-ja për draft Strategjinë e Zhvillimit të Sektorit Privat (PSDS) në vitin 2019 dhe strategjinë e specializuar të zgjuar, si dhe të integrojë masat për të rritur eksportin e mallrave dhe shërbimeve | C182: Strategjia për zhvillimin e industrisë dhe mbështetje të biznesit, e miratuar | D182: 1 | E182: Vendimi për publikimin e listës me titujt dhe referencat e standardeve të harmonizuara për pajisjet elektrike të destinuara për përdorim brenda kufijve të caktuar të tensionit, i miratuar
A183: MINT | B183: Përafrimi i mëtejshëm i legjislacionit për të drejtën e shoqërive tregtare me acquis të së drejtës së kompanive të BE-së, gjithashtu në fushën e të drejtave të aksionarëve, duke përfshirë promovimin e angazhimit afatgjatë të aksionarëve | C183: Projektligji për shoqëritë tregtare, i miratuar | D183: 1 | E183: Së paku pesë (5) zyrtarë të rinj në AMK, të rekrutuar
A184: MINT | B184: Zbatimi i riorganizimit të Agjencisë Kosovare për InvesKent dhe Mbështetjen e Ndërmarrjeve për t'i mundësuar agjencisë të hartojë dhe zbatojë shërbimet dhe programet e promovimit dhe kujdesit pasues në mbështetje të investimeve të huaja direkte (K2 2023). Operacionalizimi i procesit të ankesave të investitorëve, që zbaton parimet e Mekanizmit të Përgjigjes së InvesKent Sistemik, i propozuar nga Banka Botërore (K2 2023). | C184: Struktura organizative e KIESA-së e miratuar e cila adreson aspektet kryesore të përmirësimit të performancës: ndarjen e përgjegjësive, burimeve financiare dhe kapaciteteve njerëzore Njësia e kujdesit për investitorët, e themeluar Programi i kujdesit, i miratuar Mekanizmi i ankesës, i krijuar | D184: 1 | E184: Koncept dokumentit për fushën e akreditimit, i miratuar
A185: MINT | B185: Miratimi dhe fillimi I zbatimit të një strategjie për zhvillimin industrial dhe biznesin dhe shtyllën e rritjes së qëndrueshme ekonomike të Strategjisë Kombëtare të Zhvillimit 2021-2030 | C185: Strategjia për zhvillimin e industrisë dhe mbështetje të biznesit, e miratuar | D185: 1 | E185: Standardi EN ISO/IEC 17020 për laboratorët e metrologjisë ligjore (laboratori i masës, laboratori vëllim rrjedhje, laboratori i matjeve elektrike dhe laboratori i presionit), i zbatuar
A186: MINT | B186: Rritja e kapaciteteve profesionale të departamenteve juridike dhe tregtare të Ministrisë së Tregtisë dhe Industrisë për vlerësimin e pajtueshmërisë së projektakteve normative me Ligjin për Shërbime (K3 2022); | C186: Një (1) zyrtar në Departamentin e Tregtisë, i rekrutuar | D186: 1 | E186: Sistemi online për shitjen e standardeve, i funksionalizuar
A187: MINT | B187: Rritja e kapaciteteve administrative dhe profesionale të Agjencisë së Pronësisë Industriale edhe për sa i përket numrit të stafit (K4 2022); | C187: Së paku tre (3) trajnime për zyrtarët e Agjencisë së Pronësisë Industriale, të realizuara | D187: 1 | E187: UA mbi kërkesat e përcaktuara në relacion me komunikimin tregtar përfshi reklamimin apo marketingun, i miratuar
A188: MINT | B188: Të dorëzojë raportin për zbatimin e legjislacionit për shërbimet në Kosovë për vitet 2018-2021 (K2 2022); | D188: 0 | E188: Njësia për informimin e bizneseve, e funksionalizuar
A189: MINT | B189: Vazhdimi i harmonizimit të legjislacionit kombëtar të mbetur me Direktivën e Shërbimeve (K4 2022); | D189: 0 | E189: Laboratori i forcës dhe termometrisë, i akredituar
A190: MINT | B190: Miratimi i Rregullores së ndryshuar për organizimin e brendshëm të Ministrisë së Industrisë, Ndërmarrësisë dhe Tregtisë, duke përfshirë strukturën ligjore të autoriteteve për mbrojtjen e konsumatorit (K3 2022); | D190: 0 | E190: Së paku 20 biznese (10 deri në K2 2022 dhe 10 deri në K2 2023) të subvencionuara në formë të granteve për certifikim të produkteve
A191: MINT | B191: Ngritja e një mekanizmi monitorimi për të ndjekur zbatimin e Planit të Veprimit pesëvjeçar (K3 2022); | D191: 0 | E191: UA për biokarburante, i miratuar
A192: MINT | B192: Ratifikimi i Protokollit Shtesë 6 të CEFTA-s për Shërbimet | D192: 0 | E192: Projektligji për regjistrin e pronarëve përfitues, i miratuar
A193: MINT | B193: Rritja e ndërgjegjësimit të bizneseve, shoqatave profesionale dhe bashkive për thjeshtimin e procedurave administrative të lidhura me zbatimin e Planit të Veprimit pesëvjeçar (K4 2022). | D193: 0 | E193: Së paku dy (2) sektorë të ri të shërbimeve, të digjitalizuar
A194: MINT | B194: Krijimi i një liste të detajuar të profesioneve të rregulluara që përmbajnë grupin e profesioneve, specialitetet, seksionet e Direktivës së BE-së që lidhen me këtë grup profesionesh, Ligjet që lidhen me këtë grup profesionesh, nëse ka, Organizatat që lidhen me këtë grup profesionesh: organet e informacionit, organet e provimit, ministritë përgjegjëse, autoritetet kompetente. (K3 2022); | D194: 0 | E194: Së paku dy (2) zyrtarë të rekrutuar në Agjencinë e Metrologjisë
A195: MINT | B195: Kontrolli I kërkesave për qasje në secilin profesion të rregulluar në Kosovë, duke përdorur Direktivën 2018/958 për testin e proporcionalitetit si mjet ndihmës gjatë vlerësimit të kërkesave (K4 2022); | D195: 0 | E195: Agjencia për përkrahjen e ndërmarrjeve, e themeluar dhe funksionalizuar
A196: MINT | B196: Për të lehtësuar lëvizjen ndërkufitare të profesionistëve dhe shërbimeve, të vendosen strukturat, rregullat dhe procedurat e nevojshme për njohjen e kualifikimeve profesionale të marra në vende të tjera (K4 2022). | D196: 0 | E196: Analiza e ndikimit të zonave ekonomike në zhvillimin e NVM, e kryer
A197: MINT | B197: Të ndërmerren hapa për të harmonizuar më tej me acquis, veçanërisht në lidhje me markat tregtare dhe sekretet tregtare (K3 2022) | D197: 0 | E197: Së paku dyzet (40) biznese përfituese të granteve që u ndihmojnë bizneseve për të rritur kapacitetet prodhuese dhe zbatojnë standardet e kërkuara në tregun e BE -së
A198: MINT | B198: Vazhdimi i ndërgjegjësimit për mbrojtjen e të drejtave të pronësisë industriale, duke kontribuar në rritjen e numrit të aplikimeve për pronësi intelektuale. Rritja e ndërgjegjësimit të bartësve të të drejtave për të kërkuar mbrojtje ligjore, duke rritur numrin e kërkesave për veprime në institucionet ligjzbatuese | D198: 0 | E198: Vlerësimi i performancës së skemave mbështetëse për bizneset të KIESA-s, i realizuar
A199: MINT | B199: Përgatitja dhe miratimi i Strategjisë së Pronësisë Industriale me një afat kohor dhe plan veprimi të qartë (K3 2022) | D199: 0 | E199: Programi për pronësi industriale, e miratuar
A200: MINT | B200: Sigurimi i harmonizimit dhe zbatimit efektiv të Direktivës për Zbatimin e të Drejtave të Pronësisë Industriale (K3 2022); | D200: 0 | E200: Së paku një (1) produkt i regjistruar sipas treguesit gjeografik
... 150 more rows

Sheet Criteria 3
A1: Kriteri 3: Shkalla e zbatimit Qëllimi i këtij vlerësimi është të matë zbatimin e masave të planifikuara në Programin Kombëtar për Integrim Evropian dhe Planin e Veprimit të Agjendës së Reformës Evropiane.
A2: Institution | B2: Priority | C2: Masa | D2: Afati | E2: Referenca | F2: Zbatimi
A3: Ministria e Ekonomisë
A4: ME | C4: Projektligji për energji, i miratuar | D4: K4 2023 | E4: PKIE | F4: 1
A5: ME | C5: Projektligji për rregullatorin e energjisë, i miratuar | D5: K4 2023 | E5: PKIE | F5: 1
A6: ME | C6: Projektligji për burimet e ripërtëritshme të energjisë, i miratuar | D6: K2 2023 | E6: PKIE ERA (K4 2022) | F6: 1
A7: ME | C7: Programi i Zbatimit të Strategjisë së Energjisë, i miratuar | D7: K3 2023 | E7: PKIE ERA (K2 2022) | F7: 1
A8: ME | C8: Plani i Energjisë dhe Klimës 2021-2030, i miratuar | D8: K2 2022 | E8: ERA | F8: 0
A9: ME | C9: Rregullorja për skemën e re mbështetëse për BRE | D9: K4 2022 | E9: ERA | F9: 0
A10: ME | C10: Dizajnimi i skemës konkurruese për BRE | D10: K4 2022 | E10: ERA | F10: 0
A11: ME | C11: Hapja e tregut të energjisë për konsumatorët e nivelit të tensionit 35 kv dhe 10 kv | D11: K2 2022 | E11: ERA | F11: 0
A12: ME | C12: Projektligji i plotësuar-ndryshuar për ndërmarrje publike, bazuar në rekomandimet e BE dhe praktikat e mira, i miratuar | D12: K2 2022 | E12: ERA | F12: 0
A13: ME | C13: Aktet nënligjore të miratuara | D13: K4 2022 | E13: ERA | F13: 0
A14: ME | C14: Kodi i etikës dhe qeverisjes korporative të ndërmarrjeve publike, i miratuar | D14: K3 2022 | E14: ERA | F14: 0
A15: ME | C15: Agjenda Digjitale për Kosovën 2030, e miratuar | D15: K3 2023 | E15: PKIE | F15: 1
A16: ME | C16: Njëzet (20) pirgje të rrjetit mobil, ‘5G ready’, të lidhura me infrastrukturë fikse brezgjerë | D16: K4 2023 | E16: PKIE | F16: 1
A17: Përqindja | F17: 46%
A18: Rezultati i përgjithshëm | F18: 5
A19: Ministria e Mjedisit, Planifikimit Hapësinor dhe Infrastrukturës
A20: MMPHI | B20: K14: Politikat e Transportit | C20: Projektligji për plotësim-ndryshimin e Ligjit për Transportin Rrugor, i miratuar | D20: K4 2023 | E20: PKIE | F20: 1
A21: MMPHI | B21: K14: Politikat e Transportit | C21: UA për kontrollimin e rregullsisë teknike të automjeteve në rrugë, i miratuar | D21: K2 2023 | E21: PKIE | F21: 0
A22: MMPHI | B22: K14: Politikat e Transportit | C22: Plani i veprimit 2023-2025 për zbatimin e Strategjisë së transportit multimodal 2023-2030, i miratuar | D22: K4 2023 | E22: PKIE | F22: 1
A23: MMPHI | B23: K14: Politikat e Transportit | C23: Koncept dokumenti për hekurudha, i miratuar | D23: K4 2023 | E23: PKIE | F23: 1
A24: MMPHI | B24: K14: Politikat e Transportit | C24: Koncept dokumenti për transportin e mallrave të rrezikshme, i miratuar | D24: K3 2023 | E24: PKIE | F24: 1
A25: MMPHI | B25: K27: Mjedisi | C25: Projektligji për plotësim-ndryshimin e Ligjit për Vlerësimin Strategjik Mjedisor, i miratuar | D25: K3 2023 | E25: PKIE | F25: 1
A26: MMPHI | B26: K27: Mjedisi | C26: Projektligji për ndryshime klimatike, i miratuar | D26: K2 2023 | E26: PKIE | F26: 1
C27: Projektligji për inspektimin në fushën e mjedisit, ujërave, natyrës, planifikimit hapësinor, ndërtimit dhe banimit, i miratuar | D27: K4 2023 | E27: PKIE | F27: 1
C28: UA për ambalazhim/paketim dhe mbeturinat e ambalazhimit/ paketimit, i miratuar | D28: K2 2023 | E28: PKIE | F28: 1
C29: Strategjia për Mbrojtjen e Mjedisit dhe Zhvillim të Qëndrueshëm 2022-2030, e miratuar | D29: K3 2023 | E29: PKIE | F29: 0
C30: Strategjia Shtetërore e Ujërave të Kosovës 2023-2027 dhe Plani i Veprimit 2023-2025 për zbatimin e saj, i miratuar | D30: K2 2023 | E30: PKIE | F30: 1
C31: Koncept dokumenti për fushën e ujërave, i miratuar | D31: K2 2023 | E31: PKIE | F31: 1
C32: Koncept dokumenti për fushën e mbrojtjes së natyrës, i miratuar | D32: K3 2023 | E32: PKIE | F32: 1
C33: Plani për menaxhimin e mbeturinave ndërtimore dhe të demolimit, i miratuar | D33: K2 2023 | E33: PKIE | F33: 1
C34: Numri i inspektorëve të trajnuar për të kontrolluar zbatimin e legjislacionit mjedisor | D34: K4 2023 | E34: PKIE | F34: 1
C35: Numri i zonave të reja të natyres (rreth 10), të mbrojtura | D35: K4 2023 | E35: PKIE | F35: 1
C36: Numri i deponive ilegale në komuna të identifikuara dhe reduktuara | D36: K3 2023 | E36: PKIE | F36: 1
C37: Inventari i gazrave serrë për vitin 2021, i përgatitur | D37: K2 2023 | E37: PKIE | F37: 1
C38: Projektligji për mbrojtjen e ajrit nga ndotja, i miratuar | D38: K1 2022 | E38: ERA | F38: 1
C39: Projektligji për ujërat e Kosovës, i miratuar | D39: K1 2022 | E39: ERA | F39: 0
C40: Projektligji për mbeturinat, i miratuar | D40: K2 2021 | E40: ERA | F40: 1
C41: Fillimi i hartimit të strategjisë për dekarbonizim | D41: K4 2021 | E41: ERA | F41: 0
C42: Plani i rishikuar kombëtar për cilësinë e ajrit, i miratuar | D42: K4 2022 | E42: ERA | F42: 0
C43: Plani për menaxhimin e mbeturinave me VSM në zonën e Prishtinës, i hartuar | D43: K2 2023 | E43: ERA | F43: 1
C44: Plani i menaxhimit për pellgun e lumit Drini i Bardhë, i finalizuar | D44: K4 2022 | E44: ERA | F44: 0
C45: Rrjeti i monitorimit të ujërave nëntokësore, i funksionalizuar | D45: K4 2022 | E45: ERA | F45: 1
C46: Trajnimi i nivelit komunal për zbatimin e legjislacionit për menaxhimin e mbeturinave | D46: K4 2022 | E46: ERA | F46: 1
C47: Trajnimi i nivelit komunal për zbatimin e legjislacionit për menaxhimin e mbeturinave | D47: K4 2022 | E47: ERA | F47: 1
C48: Fillimi i zbatimit të projekteve për menaxhimin e mbeturinave të rrezikshme: objektin për ruajtjen e përkohshme të mbetjeve të rrezikshme, dekomisionimi i Kosovës A | D48: K3 2021 | E48: ERA | F48: 0
C49: Qendrat e transferimit dhe riciklimit në Skenderaj, Klinë, Istog, Novobërdë, të ndërtuara | D49: K2 2023 | E49: ERA | F49: 0
C50: Fillimi i krijimit të sistemit të rikthimit të depozitës për shishe, plastikë dhe kanaçe | D50: K4 2022 | E50: ERA | F50: 0
C51: Plotësim-ndryshimi i Ligjit nr.03/L-233 për mbrojtjen e natyrës | D51: K3 2021 | E51: ERA | F51: 0
C52: Monitorimi dhe raportimi për gjendjen e zonave të mbrojtura dhe biodiversitetit | D52: K4 2022 | E52: ERA | F52: 1
C53: Plani hapësinor për parkun kombëtar ‘Sharri’, i miratuar | D53: K2 2023 | E53: ERA | F53: 1
C54: Plani hapësinor i parkut kombëtar ‘Bjeshkët e Nemuna’, i miratuar | D54: K2 2022 | E54: ERA | F54: 1
C55: Krijimi i Sistemit online të Informacionit Mjedisor | D55: K1 2023 | E55: ERA | F55: 1
A56: Përqindja | F56: 72%
A57: Rezultati i përgjithshëm | F57: 8
A58: Ministria e Arsimit, Shkencës, Teknologjisë dhe Inovacionit
A59: MASHTI | B59: K3: E drejta e themelimit dhe liria e ofrimit të shërbimeve | C59: UA për plotësim-ndryshimin e UA për Standardet dhe Procedurat e Verifikimit të Standardeve të Profesionit, i miratuar | D59: K4 2023 | E59: PKIE | F59: 0
C60: Mbështetja e qendrave mësimore për romë, ashkalinj dhe egjiptianë | D60: K4 2023 | E60: PKIE | F60: 1
C61: Bursat për nxënës dhe studentë romë, ashkalinj dhe egjiptianë, të ndara | D61: K4 2023 | E61: PKIE | F61: 1
C62: Programi Kombëtar i Shkencës, i hartuar | D62: K4 2023 | E62: PKIE | F62: 1
C63: Platforma KRIS, e finalizuar dhe lansuar | D63: K4 2023 | E63: PKIE | F63: 1
C64: Pikat kombëtare të kontaktit për Programin Horizon, të funksionalizuara | D64: K4 2023 | E64: PKIE | F64: 0
C65: Kurrikula bërthamë për edukimin në fëmijërinë e hershme, e hartuar dhe miratuar | D65: K4 2023 | E65: PKIE | F65: 0
C66: Korniza Kurrikulare për AAP, e miratuar | D66: K4 2023 | E66: PKIE | F66: 0
C67: Infrastruktura e pershtatur (pjerrinat) në 14 shkolla, brenda dhe jashte objektit | D67: K4 2023 | E67: PKIE | F67: 1
C68: Së pagu 20 Inspektorë të rinj, të rekrutuar | D68: K4 2023 | E68: PKIE | F68: 0
A69: Raportet për 400 mësimdhënës dhe 30 institucione arsimore për nivelin e performancës së arritur, të hartuara | B69: Raportet për 400 mësimdhënës dhe 30 institucione arsimore për nivelin e performancës së arritur, të hartuara | C69: Raportet për 400 mësimdhënës dhe 30 institucione arsimore për nivelin e performancës së arritur, të hartuara | D69: K4 2022 | E69: ERA | F69: 0
A70: Roli i koordinatorëve të cilësisë i definuar përmes miratimit të UA | B70: Roli i koordinatorëve të cilësisë i definuar përmes miratimit të UA | C70: Roli i koordinatorëve të cilësisë i definuar përmes miratimit të UA | D70: K4 2022 | E70: ERA | F70: 1
A71: Të gjitha shkollat kanë koordinator të cilësisë të trajnuar dhe që dedikojnë numër të caktuar të orëve për çështje të cilësisë | B71: Të gjitha shkollat kanë koordinator të cilësisë të trajnuar dhe që dedikojnë numër të caktuar të orëve për çështje të cilësisë | C71: Të gjitha shkollat kanë koordinator të cilësisë të trajnuar dhe që dedikojnë numër të caktuar të orëve për çështje të cilësisë | D71: K1 2023 | E71: ERA | F71: 1
A72: Standardet për monitorim të miratuara | B72: Standardet për monitorim të miratuara | C72: Standardet për monitorim të miratuara | D72: K3 2021 | E72: ERA | F72: 1
A73: Miratimi i politikave (rregulloreve) për sigurim të brendshëm të cilësisë | B73: Miratimi i politikave (rregulloreve) për sigurim të brendshëm të cilësisë | C73: Miratimi i politikave (rregulloreve) për sigurim të brendshëm të cilësisë | D73: K2 2022 | E73: ERA | F73: 0
A74: Planit Strategjik i AKA-së, i miratuar | B74: Planit Strategjik i AKA-së, i miratuar | C74: Planit Strategjik i AKA-së, i miratuar | D74: K4 2021 | E74: ERA | F74: 1
A75: Njëzetepesë (25) inspektorë të rinj të arsimit, të rekrutuar përmes procesit konkurrues | B75: Njëzetepesë (25) inspektorë të rinj të arsimit, të rekrutuar përmes procesit konkurrues | C75: Njëzetepesë (25) inspektorë të rinj të arsimit, të rekrutuar përmes procesit konkurrues | D75: K4 2021 | E75: ERA | F75: 0
A76: Pesëmbëdhjetë (15) programe të zhvillimit profesional të mësimdhënësve, të miratuara | B76: Pesëmbëdhjetë (15) programe të zhvillimit profesional të mësimdhënësve, të miratuara | C76: Pesëmbëdhjetë (15) programe të zhvillimit profesional të mësimdhënësve, të miratuara | D76: K1 2022 | E76: ERA | F76: 1
A77: Numri i mësimdhënësve të licencuar | B77: Numri i mësimdhënësve të licencuar | C77: Numri i mësimdhënësve të licencuar | D77: K4 2022 | E77: ERA | F77: 1
A78: Kurrikulat bërthamë për klasën 11 dhe 12 të zhvilluara | B78: Kurrikulat bërthamë për klasën 11 dhe 12 të zhvilluara | C78: Kurrikulat bërthamë për klasën 11 dhe 12 të zhvilluara | D78: K2 2022 | E78: ERA | F78: 1
A79: Pakot mësimore për klasën 10, 11 dhe 12 të zhvilluara | B79: Pakot mësimore për klasën 10, 11 dhe 12 të zhvilluara | C79: Pakot mësimore për klasën 10, 11 dhe 12 të zhvilluara | D79: K2 2022 | E79: ERA | F79: 1
A80: Trajnimi i 1,500 mësimdhënësve për zbatimin e Kurrikulës bërthamë | B80: Trajnimi i 1,500 mësimdhënësve për zbatimin e Kurrikulës bërthamë | C80: Trajnimi i 1,500 mësimdhënësve për zbatimin e Kurrikulës bërthamë | D80: K2 2022 | E80: ERA | F80: 0
A81: Projektligji për Agjencinë e Akreditimit, i miratuar | B81: Projektligji për Agjencinë e Akreditimit, i miratuar | C81: Projektligji për Agjencinë e Akreditimit, i miratuar | D81: K3 2021 | E81: ERA | F81: 1
A82: Projektligji për Arsimin e Lartë, i miratuar | B82: Projektligji për Arsimin e Lartë, i miratuar | C82: Projektligji për Arsimin e Lartë, i miratuar | D82: K4 2022 | E82: ERA | F82: 0
A83: Rregullorja për organizimin e brendshëm dhe sistematizimin e vendeve të punës në MAShTI, e miratuar | B83: Rregullorja për organizimin e brendshëm dhe sistematizimin e vendeve të punës në MAShTI, e miratuar | C83: Rregullorja për organizimin e brendshëm dhe sistematizimin e vendeve të punës në MAShTI, e miratuar | D83: K3 2021 | E83: ERA | F83: 0
A84: Vlerësimi i realizuar dhe rekomandimet e përfshira në PSAK të ri | B84: Vlerësimi i realizuar dhe rekomandimet e përfshira në PSAK të ri | C84: Vlerësimi i realizuar dhe rekomandimet e përfshira në PSAK të ri | D84: K4 2021 | E84: ERA | F84: 1
A85: Zbatimi i së paku 3 programeve prioritare trajnuese për secilën nga fushat e arsimit të lartë, para-universitar dhe AAP | B85: Zbatimi i së paku 3 programeve prioritare trajnuese për secilën nga fushat e arsimit të lartë, para-universitar dhe AAP | C85: Zbatimi i së paku 3 programeve prioritare trajnuese për secilën nga fushat e arsimit të lartë, para-universitar dhe AAP | D85: K4 2022 | E85: ERA | F85: 1
A86: Menaxhmenti i MAShTI-t i trajnuar për zbatim të instrumentit të mbështetjes direkte buxhetore | B86: Menaxhmenti i MAShTI-t i trajnuar për zbatim të instrumentit të mbështetjes direkte buxhetore | C86: Menaxhmenti i MAShTI-t i trajnuar për zbatim të instrumentit të mbështetjes direkte buxhetore | D86: K4 2022 | E86: ERA | F86: 0
A87: Menaxhmenti i MAShTI-t i trajnuar për planifikimin dhe menaxhimin e fondeve të jashtme përfshirë menaxhimin e deleguar | B87: Menaxhmenti i MAShTI-t i trajnuar për planifikimin dhe menaxhimin e fondeve të jashtme përfshirë menaxhimin e deleguar | C87: Menaxhmenti i MAShTI-t i trajnuar për planifikimin dhe menaxhimin e fondeve të jashtme përfshirë menaxhimin e deleguar | D87: K4 2022 | E87: ERA | F87: 0
A88: Projektligji për edukimin në fëmijërinë e hershme 0-6 vjeç, i miratuar | B88: Projektligji për edukimin në fëmijërinë e hershme 0-6 vjeç, i miratuar | C88: Projektligji për edukimin në fëmijërinë e hershme 0-6 vjeç, i miratuar | D88: K2 2022 | E88: ERA | F88: 1
A89: UA për detyrat, përgjegjësitë, procedurat dhe kriteret e zgjedhjes së drejtorit dhe të zëvendësdrejtorit të institucionit edukativo-arsimor dhe aftësues para-universitar me përfshirje të aspekteve gjinore, i miratuar | B89: UA për detyrat, përgjegjësitë, procedurat dhe kriteret e zgjedhjes së drejtorit dhe të zëvendësdrejtorit të institucionit edukativo-arsimor dhe aftësues para-universitar me përfshirje të aspekteve gjinore, i miratuar | C89: UA për detyrat, përgjegjësitë, procedurat dhe kriteret e zgjedhjes së drejtorit dhe të zëvendësdrejtorit të institucionit edukativo-arsimor dhe aftësues para-universitar me përfshirje të aspekteve gjinore, i miratuar | D89: K3 2022 | E89: ERA | F89: 1
A90: UA për Procedurat e përzgjedhjes së personelit edukativo-arsimor në institucionet edukativo-arsimore dhe aftësuese (IEAA) të arsimit para-universitar me përfshirje të aspekteve gjinore, i miratuar | B90: UA për Procedurat e përzgjedhjes së personelit edukativo-arsimor në institucionet edukativo-arsimore dhe aftësuese (IEAA) të arsimit para-universitar me përfshirje të aspekteve gjinore, i miratuar | C90: UA për Procedurat e përzgjedhjes së personelit edukativo-arsimor në institucionet edukativo-arsimore dhe aftësuese (IEAA) të arsimit para-universitar me përfshirje të aspekteve gjinore, i miratuar | D90: K3 2022 | E90: ERA | F90: 1
A91: Takime informuese në të gjitha DKA-të, të realizuara | B91: Takime informuese në të gjitha DKA-të, të realizuara | C91: Takime informuese në të gjitha DKA-të, të realizuara | D91: K4 2022 | E91: ERA | F91: 1
A92: Trajnime me stafin e 6 qendrave burimore, trajnime me edukatoret e nivelit parashkollor, para-fillor si dhe mësimdhënësit e shkollave fillore, të mesme të ulëta dhe të larta | B92: Trajnime me stafin e 6 qendrave burimore, trajnime me edukatoret e nivelit parashkollor, para-fillor si dhe mësimdhënësit e shkollave fillore, të mesme të ulëta dhe të larta | C92: Trajnime me stafin e 6 qendrave burimore, trajnime me edukatoret e nivelit parashkollor, para-fillor si dhe mësimdhënësit e shkollave fillore, të mesme të ulëta dhe të larta | D92: K3 2022 | E92: ERA | F92: 1
A93: Trajnimi i institucioneve dhe ekipeve vlerësuese komunale dhe parashkollore për përdorim të instrumenteve për vlerësimin e fëmijëve me nevoja të veçanta | B93: Trajnimi i institucioneve dhe ekipeve vlerësuese komunale dhe parashkollore për përdorim të instrumenteve për vlerësimin e fëmijëve me nevoja të veçanta | C93: Trajnimi i institucioneve dhe ekipeve vlerësuese komunale dhe parashkollore për përdorim të instrumenteve për vlerësimin e fëmijëve me nevoja të veçanta | D93: K3 2022 | E93: ERA | F93: 1
A94: Financimi i mjaftueshëm i qendrave ekzistuese të të mësuarit | B94: Financimi i mjaftueshëm i qendrave ekzistuese të të mësuarit | C94: Financimi i mjaftueshëm i qendrave ekzistuese të të mësuarit | D94: K4 2022 | E94: ERA | F94: 0
A95: 20 komuna dhe shkolla për zbatimin e platformës për parandalim dhe reagim ndaj braktisjes dhe dhunës, të mbështetura | B95: 20 komuna dhe shkolla për zbatimin e platformës për parandalim dhe reagim ndaj braktisjes dhe dhunës, të mbështetura | C95: 20 komuna dhe shkolla për zbatimin e platformës për parandalim dhe reagim ndaj braktisjes dhe dhunës, të mbështetura | D95: K4 2022 | E95: ERA | F95: 1
A96: Zbatimi i instruksioneve dhe udhëzuesit për themelimin dhe funksionimin e Qendrave Mësimore | B96: Zbatimi i instruksioneve dhe udhëzuesit për themelimin dhe funksionimin e Qendrave Mësimore | C96: Zbatimi i instruksioneve dhe udhëzuesit për themelimin dhe funksionimin e Qendrave Mësimore | D96: K4 2022 | E96: ERA | F96: 1
A97: Përqindja | F97: 67%
A98: Rezultati i përgjithshëm | F98: 7
A99: Ministria e Bujqësisë, Pylltarisë dhe Zhvillimit Rural
A100: MBPZHR | B100: Perkrahja bujqesise dhe zhvillimit rural | C100: Projektligji për organizimin e tregut të përbashkët të produkteve bujqësore, i miratuar | D100: K1 2023 | E100: PKIE | F100: 1
A101: MBPZHR | B101: Perkrahja bujqesise dhe zhvillimit rural | C101: Projektligji për tokën bujqësore, i miratuar | D101: K4 2023 | E101: PKIE | F101: 1
A102: MBPZHR | B102: Perkrahja bujqesise dhe zhvillimit rural | C102: Programi për bujqësi dhe zhvillim rural 2022-2027, i miratuar | D102: K1 2023 | E102: PKIE | F102: 1
A103: MBPZHR | B103: Perkrahja bujqesise dhe zhvillimit rural | C103: Plani kombëtar për bujqësi organike, i miratuar | D103: K2 2023 | E103: PKIE | F103: 1
A104: MBPZHR | B104: Avancimi i sigurisë së ushqimit, fitosanitarise dhe veterinarisë | C104: Projektligj i për veterinarinë, i miratuar | D104: K4 2023 | E104: PKIE | F104: 0
A105: MBPZHR | B105: Avancimi i sigurisë së ushqimit, fitosanitarise dhe veterinarisë | C105: Plani për avancimin e ndërmarrjeve agro-ushqimore, i miratuar | D105: K4 2023 | E105: PKIE | F105: 0
A106: MBPZHR | B106: Avancimi i sigurisë së ushqimit, fitosanitarise dhe veterinarisë | C106: Inventarizimi i peshkut (pilotprojekt) në një (1) pellg lumor, i finalizuar | D106: K4 2023 | E106: PKIE | F106: 1
A107: Përqindja | F107: 71%
A108: Rezultati i përgjithshëm | F108: 8
A109: Ministria e Punëve të Brendshme
A110: MPB | B110: Ofrimi i sherbimeve cilesore publike | C110: Projektligji për plotësim-ndryshim e ligjeve që përmbajnë procedura të veçanta administrative dhe harmonizimin e tyre me ligjin për procedurën e përgjithshme administrative, faza e dytë, i miratuar | D110: K3 2023 | E110: PKIE | F110: 1
A111: MPB | B111: Ofrimi i sherbimeve cilesore publike | C111: Së paku 50 shërbime të reja në platformën eKosova, të funksionalizuar | D111: K4 2023 | E111: PKIE | F111: 1
A112: MPB | B112: Ofrimi i sherbimeve cilesore publike | C112: Sistemi ARIS dhe Sistemi Qendror për Regjistrim Civil, të funksionalizuar dhe ndërlidhur | D112: K2 2023 | E112: ERA | F112: 0
A113: MPB | B113: Ofrimi i sherbimeve cilesore publike | C113: Të paktën 20% të projektligjeve ekzistuese, draft ligjeve, akteve nënligjore dhe udhëzimeve administrative që përmbajnë procedura të veçanta administrative dhe janë pjesë e programit legjislativ, të harmonizuara me LPPA | D113: K4 2021 | E113: ERA | F113: 1
A114: MPB | B114: Ofrimi i sherbimeve cilesore publike | C114: Faza e tretë e digjitalizimit të librave të skanuar, përkatësisht verifikimi i të dhënave dhe lidhja/përputhja e të dhënave, e zbatuar | D114: K4 2022 | E114: ERA | F114: 1
A115: MPB | B115: Ofrimi i sherbimeve cilesore publike | C115: Ofrimi i shërbimeve të gjendjes civile në komunat veriore | D115: K4 2022 | E115: ERA | F115: 1
A116: MPB | B116: Ofrimi i sherbimeve cilesore publike | C116: Rishikimi i kornizës ligjore dhe popullimi i regjistrit qendror me të gjitha të dhënat e qytetarëve, përfshirë ato historike, duke zvogëluar rastet e personave pa dokumente | D116: K4 2022 | E116: ERA | F116: 0
A117: MPB | B117: Krijimi i administrates Evropiane publike | C117: Projektligji për plotësim-ndryshim e Ligjit për Organizimin dhe Funksionimin e Administratës Shtetërore dhe Agjencive të Pavarura, i miratuar | D117: K3 2023 | E117: PKIE | F117: 0
A118: MPB | B118: Krijimi i administrates Evropiane publike | C118: Platforma digjitale për raportimin mbi zbatimin e kornizës strategjike të RAP, e funksionalizuar | D118: K1 2023 | E118: PKIE | F118: 1
A119: MPB | B119: Krijimi i administrates Evropiane publike | C119: Gjashtë (6) rregullore për zbatimin e Ligjit për Zyrtarët Publikë, të plotësuara-ndryshuara | D119: K4 2021 | E119: ERA | F119: 1
A120: MPB | B120: Krijimi i administrates Evropiane publike | C120: Memorandum shpjegues për ligjin për inspektim administrativ, i hartuar | D120: K4 2021 | E120: ERA | F120: 1
A121: MPB | B121: Krijimi i administrates Evropiane publike | C121: Projektligji për inspektimin administrativ, i miratuar | D121: K2 2022 | E121: ERA | F121: 1
A122: MPB | B122: Racionalizimi i agjencive | C122: Projektligji për valën e tretë të racionalizimit të agjencive, i miratuar | D122: K4 2023 | E122: PKIE ERA (K1 2023) | F122: 0
A123: MPB | B123: Racionalizimi i agjencive | C123: Projektligji për valën e dytë të racionalizimit të agjencive, i miratuar | D123: K2 2022 | E123: ERA | F123: 1
A124: MPB | B124: Racionalizimi i agjencive | C124: Koncept dokumenti për valën e tretë të racionalizimit të agjencive, i miratuar | D124: K3 2022 | E124: ERA | F124: 1
A125: MPB | B125: Racionalizimi i agjencive | C125: Koncept dokumenti për valën e katërt të racionalizimit të agjencive, i miratuar | D125: K4 2022 | E125: ERA | F125: 1
A126: MPB | B126: Racionalizimi i agjencive | C126: Plani për racionalizimin e agjencive, i rishikuar | D126: K2 2023 | E126: PKIE | F126: 0
A127: MPB | B127: Zbatimi i politikave efektive te migrimit | C127: Së paku tridhjetekatër (34) prej tridhjetetetë (38) planeve lokale të veprimit për riintegrim, të miratuara | D127: K4 2023 | E127: PKIE | F127: 1
A128: MPB | B128: Zbatimi i politikave efektive te migrimit | C128: Qarkorja informative për zbatimin e politikave për riintegrim të qëndrueshëm, e hartuar | D128: K4 2023 | E128: PKIE | F128: 1
A129: MPB | B129: Zbatimi i politikave efektive te migrimit | C129: Udhëzuesi për monitorimin e integrimit të të huajve, i hartuar | D129: K4 2023 | E129: PKIE | F129: 1
A130: MPB | B130: Zbatimi i politikave efektive te migrimit | C130: Profili i Zgjeruar i Migrimit 2018- 2022, i miratuar | D130: K4 2023 | E130: PKIE | F130: 1
A131: MPB | B131: Zbatimi i politikave efektive te migrimit | C131: Profili i Lehtë i Migrimit 2022, i miratuar | D131: K4 2023 | E131: PKIE | F131: 1
A132: MPB | B132: Zbatimi i politikave efektive te migrimit | C132: Trajnim i trajnerëve (TT) me pjesëmarrjen e së paku dhjetë (10) zyrtarëve të nivelit qendror dhe lokal, për integrimin e të huajve, i mbajtur | D132: K4 2023 | E132: PKIE | F132: 1
A133: MPB | B133: Zbatimi i politikave efektive te migrimit | C133: Së paku pesë (5) trajnime, për 400 zyrtarë të nivelit qendror dhe lokal, për zbatimin e politikave për riintegrimin dhe integrimin e të huajve, të mbajtur | D133: K4 2023 | E133: PKIE | F133: 1
A134: MPB | B134: Zbatimi i politikave efektive te migrimit | C134: Së paku dy (2) zyrtarë në Qendrën e Përkohshme të Pritjes, të sistemuar | D134: K4 2023 | E134: PKIE | F134: 1
A135: MPB | B135: Zbatimi i politikave efektive te migrimit | C135: Së paku 60 gra ose vajza përfituese nga skemat e riintegrimit dhe integrimit të qëndrueshëm | D135: K4 2023 | E135: PKIE | F135: 1
A136: MPB | B136: Zbatimi i politikave efektive te migrimit | C136: Projektligji për shtetësinë, i plotësuar-ndryshuar | D136: K4 2022 | E136: ERA | F136: 0
A137: MPB | B137: Zbatimi i politikave efektive te migrimit | C137: Projektligji për plotësim - ndryshimin e Ligjit për të Huajt, i miratuar | D137: K3 2023 | E137: PKIE | F137: 0
A138: MPB | B138: Zbatimi i politikave efektive te migrimit | C138: Së paku tre (3) trajnime në kuadër të Udhërrëfyesit të bashkëpunimit me EUAA, me pjesëmarrjen e së paku tre (3) zyrtarëve të azilit, të organizuara | D138: K4 2023 | E138: PKIE | F138: 1
A139: MPB | B139: Zbatimi i politikave efektive te migrimit | C139: Projektligji për banesa dhe vendbanime, i plotësuar-ndryshuar | D139: K4 2022 | E139: ERA | F139: 0
A140: MPB | B140: Avancimi i menaxhimit te integruar te kuijve | C140: Programi i TI -së, me opsionin QlikView, për të përfshirë Sistemin e Menaxhimit të Rasteve (CMS) dhe Platformën e Inteligjencës Kufitare (BI), i avancuar | D140: K4 2023 | E140: PKIE | F140: 1
A141: MPB | B141: Avancimi i menaxhimit te integruar te kuijve | C141: Ndërlidhja e NjIP -së, me së paku tre (3) operatorë për të pranuar të dhëna REU, e funksionalizuar | D141: K4 2023 | E141: PKIE | F141: 1
A142: MPB | B142: Avancimi i menaxhimit te integruar te kuijve | C142: Projektligji për plotësim -ndryshim e Ligjit për Kontrollin dhe Mbikëqyrjen e Kufirit Shtetëror, i miratuar | D142: K4 2023 | E142: PKIE | F142: 1
A143: MPB | B143: Avancimi i menaxhimit te integruar te kuijve | C143: Plani i veprimit i QKMK, i zbatuar plotësisht | D143: K4 2021 | E143: ERA | F143: 0
A144: MPB | B144: Luftimi i krimit të organizuar dhe bashkëpunimi policor | C144: Departamenti për Inteligjencë dhe Analizë në PK, i themeluar | D144: K4 2023 | E144: PKIE | F144: 1
A145: MPB | B145: Luftimi i krimit të organizuar dhe bashkëpunimi policor | C145: Së paku njëzet (20) analistë të trajnuar në fushën e analizës | D145: K4 2023 | E145: PKIE | F145: 1
A146: MPB | B146: Luftimi i krimit të organizuar dhe bashkëpunimi policor | C146: Së paku 200 policë sektorialë (policë të lagjes), të caktuar | D146: K4 2023 | E146: PKIE | F146: 1
A147: MPB | B147: Luftimi i krimit të organizuar dhe bashkëpunimi policor | C147: Njësia e Veçante e Hetimeve në PK, e themeluar në përputhje me Ligjin për Prokurorinë Speciale | D147: K4 2023 | E147: PKIE | F147: 1
A148: MPB | B148: Luftimi i krimit të organizuar dhe bashkëpunimi policor | C148: Së paku dy (2) trajnime të përbashkëta polici -prokurori, për së paku dhjetë (10) zyrtarë policorë, për hetime financiare, konfiskimin e aseteve dhe mbrojtjen efektive të dëshmitarëve, të mbajtur | D148: K4 2023 | E148: PKIE | F148: 1
A149: MPB | B149: Luftimi i krimit të organizuar dhe bashkëpunimi policor | C149: Zyrtari ndërlidhës me EUROPOL, i sistemuar | D149: K1 2023 | E149: PKIE | F149: 1
A150: MPB | B150: Luftimi i krimit të organizuar dhe bashkëpunimi policor | C150: Pjesëmarrja në së paku katër (4) aktivitete në kuadër të EMPACT | D150: K4 2023 | E150: PKIE | F150: 1
A151: MPB | B151: Luftimi i krimit të organizuar dhe bashkëpunimi policor | C151: Projektligji për plotësim - ndryshimin e Ligjit për Armë, i miratuar | D151: K4 2023 | E151: PKIE | F151: 1
A152: MPB | B152: Luftimi i krimit të organizuar dhe bashkëpunimi policor | C152: UA për Ekipet e Përbashkëta të Hetimit, i miratuar | D152: K3 2021 | E152: ERA | F152: 0
A153: MPB | B153: Luftimi i krimit të organizuar dhe bashkëpunimi policor | C153: Plani i Përbashkët në mes të Policisë së Kosovës dhe Guardia di Finanza, i hartuar | D153: K4 2021 | E153: ERA | F153: 0
A154: MPB | B154: Lufta kunder terrorizmit | C154: Raportet gjashtëmujore për zbatimin e Planit të Përbashkët të Veprimit BE – Ballkan Perëndimor kundër Ekstremizmit të Dhunshëm dhe Terrorizmit, të hartua | D154: K4 2023 | E154: PKIE | F154: 1
A155: MPB | B155: Lufta kunder terrorizmit | C155: Raporti TeSAT për EUROPOL, i hartuar | D155: K4 2023 | E155: PKIE | F155: 1
A156: MPB | B156: Lufta kunder terrorizmit | C156: Strategjia për parandalimin e terrorizmit dhe ekstremizmit të dhunshëm, e miratuar | D156: K4 2021 | E156: ERA | F156: 1
A157: Përqindja | F157: 77%
A158: Rezultati i përgjithshëm | F158: 8
A159: Ministria e Industrisë, Ndërmarrësisë dhe Tregtisë
A160: MINT | C160: Rregullorja për plotësim - ndryshimin e Rregullores (MINT) nr. 01/2018 për Etiketimin dhe Shënjimin e Produkteve të Tekstilit, e miratuar | D160: K3 2023 | E160: PKIE | F160: 1
A161: MINT | C161: Vendimi për publikimin e listës me titujt dhe referencat e standardeve të harmonizuara për pajisjet elektrike të destinuara për përdorim brenda kufijve të caktuar të tensionit, i miratuar | D161: K3 2023 | E161: PKIE | F161: 1
A162: MINT | C162: Vendimi për publikimin e listës me titujt dhe referencat e standardeve të harmonizuara për pajtueshmërinë elektromagnetike, i miratua | D162: K3 2023 | E162: PKIE | F162: 1
A163: MINT | C163: Koncept dokumentit për fushën e akreditimit, i miratuar | D163: K3 2023 | E163: PKIE | F163: 0
A164: MINT | C164: Njësia për informimin e bizneseve, e funksionalizuar | D164: K4 2023 | E164: PKIE | F164: 1
A165: MINT | C165: Skema e Akreditimit për trupat certifikuese (EN ISO/IEC 17065), e themeluar dhe e funksionalizuar | D165: K4 2023 | E165: PKIE | F165: 1
A166: MINT | C166: Laboratori i forcës dhe termometrisë, i akredituar | D166: K4 2023 | E166: PKIE | F166: 1
A167: MINT | C167: Së paku dhjetë (10) zyrtarë të rinj në inspektoratin e tregut, të rekrutua | D167: K3 2023 | E167: PKIE | F167: 0
A168: MINT | C168: Së paku pesë (5) zyrtarë të rinj në AMK, të rekrutuar | D168: K2 2023 | E168: PKIE | F168: 0
A169: MINT | C169: Së paku dhjetë (10) zyrtarë të fushës së sigurisë së produkteve, të trajnuar | D169: K3 2023 | E169: PKIE | F169: 1
A170: MINT | C170: Standardi EN ISO/IEC 17020 për laboratorët e metrologjisë ligjore (laboratori i masës, laboratori vëllim rrjedhje, laboratori i matjeve elektrike dhe laboratori i presionit), i zbatuar | D170: K4 2023 | E170: PKIE | F170: 1
A171: MINT | C171: UA për biokarburante, i miratuar | D171: K2 2022 | E171: ERA | F171: 0
A172: MINT | C172: Sistemi online për shitjen e standardeve, i funksionalizuar | D172: K4 2023 | E172: PKIE | F172: 1
A173: MINT | C173: Projektligji për regjistrin e pronarëve përfitues, i miratuar | D173: K4 2023 | E173: PKIE | F173: 1
A174: MINT | C174: Projektligji për shoqëritë tregtare, i miratuar | D174: K4 2023 | E174: PKIE | F174: 1
A175: MINT | C175: Së paku dy (2) sektorë të ri të shërbimeve, të digjitalizuar | D175: K4 2023 | E175: PKIE | F175: 1
A176: MINT | C176: Ueb-faqja për pikën e vetme të kontaktit, e krijuar dhe e lansuar | D176: K4 2023 | E176: PKIE | F176: 1
A177: MINT | C177: Strategjia për zhvillimin e industrisë dhe mbështetje të biznesit, e miratuar | D177: K1 2023 | E177: PKIE | F177: 1
A178: MINT | C178: Agjencia për përkrahjen e ndërmarrjeve, e themeluar dhe funksionalizuar | D178: K3 2023 | E178: PKIE | F178: 0
A179: MINT | C179: Analiza e ndikimit të zonave ekonomike në zhvillimin e NVM, e kryer | D179: K4 2023 | E179: PKIE | F179: 1
A180: MINT | C180: Së paku dyzet (40) biznese përfituese të granteve që u ndihmojnë bizneseve për të rritur kapacitetet prodhuese dhe zbatojnë standardet e kërkuara në tregun e BE -së | D180: K4 2023 | E180: PKIE | F180: 1
A181: MINT | C181: Së paku 20 biznese (10 deri në K2 2022 dhe 10 deri në K2 2023) të subvencionuara në formë të granteve për certifikim të produkteve | D181: K2 2023 | E181: ERA | F181: 1
A182: MINT | C182: Struktura organizative e KIESA-së e miratuar e cila adreson aspektet kryesore të përmirësimit të performancës: ndarjen e përgjegjësive, burimeve financiare dhe kapaciteteve njerëzore | D182: K2 2022 | E182: ERA | F182: 0
A183: MINT | C183: Mekanizmi i ankesës, i krijuar | D183: K1 2022 | E183: ERA | F183: 0
A184: MINT | C184: Programi i kujdesit, i miratuar | D184: K4 2022 | E184: ERA | F184: 0
A185: MINT | C185: Njësia e kujdesit për investitorët, e themeluar | D185: K1 2022 | E185: ERA | F185: 0
A186: MINT | C186: Vlerësimi i performancës së skemave mbështetëse për bizneset të KIESA-s, i realizuar | D186: K4 2022 | E186: ERA | F186: 0
A187: MINT | C187: Skema e Akreditimit për trupat certifikuese (EN ISO/IEC 17065) e themeluar dhe e funksionalizuar | D187: K1 2022 | E187: ERA | F187: 0
A188: MINT | C188: Së paku dy (2) zyrtarë të rekrutuar në Agjencinë e Metrologjisë | D188: K4 2022 | E188: ERA | F188: 0
A189: MINT | C189: Së paku një (1) laborator i ri në Agjencinë e Metrologjisë i themeluar | D189: K4 2022 | E189: ERA | F189: 1
A190: MINT | C190: Njësia për informimin e bizneseve në lidhje me standardet e themeluar | D190: K4 2022 | E190: ERA | F190: 1
A191: MINT | C191: Pika e vetme e kontaktit, e themeluar dhe e funksionalizuar | D191: K1 2022 | E191: ERA | F191: 0
A192: MINT | C192: UA mbi kërkesat e përcaktuara në relacion me komunikimin tregtar përfshi reklamimin apo marketingun, i miratuar | D192: K4 2023 | E192: PKIE | F192: 1
A193: MINT | C193: Programi për pronësi industriale, e miratuar | D193: K1 2023 | E193: PKIE | F193: 0
A194: MINT | C194: Së paku tre (3) trajnime për zyrtarët e Agjencisë së Pronësisë Industriale, të realizuara | D194: K4 2023 | E194: PKIE | F194: 1
A195: MINT | C195: Së paku një (1) produkt i regjistruar sipas treguesit gjeografik | D195: K4 2023 | E195: PKIE | F195: 1
A196: MINT | C196: Dokumenti për politika tregtare, i miratuar | D196: K3 2023 | E196: PKIE | F196: 0
A197: MINT | C197: Një (1) zyrtar në Departamentin e Tregtisë, i rekrutuar | D197: K3 2023 | E197: PKIE | F197: 1
A198: Përqindja | F198: 61%
A199: Rezultati i përgjithshëm | F199: 7
A200: Ministria e Drejtësisë
... 110 more rows

Sheet Criteria 4
A1: Kriteri 4: Vlerësimi i raportit të vendit i BE-së Çdo vit Komisioni Evropian publikon raportin vjetor të vendit për Kosovën. Në raport, KE përdor metodologji të matshme që lejon matjen e progresit vjetor të vendit në miratimin e detyrimeve të anëtarësimit në BE sipas përshkrimit të mëposhtëm: (0) kthim prapa; (1) nuk ka përparim; (2) progres i kufizuar; (3) disa përparime; (4) progres i mirë; (5) progres shumë i mirë. Qëllimi i këtij vlerësimi është të faktorizojë progresin që ka bërë çdo ministri e linjës gjatë periudhës së vlerësimit.
A2: Institution | B2: Kapitulli i raportit të vendit i BE-së | C2: Vlerësimi i raportit të vendit i BE-së
A3: Ministria e Ekonomisë
A4: ME | B4: Kapitulli 15: Energjia | C4: 10
A5: ME | B5: Kapitulli 10: Transformimi digjital dhe mediat | C5: -10
A6: Score | C6: 10
A7: Ministria e Mjedisit, Planifikimit Hapësinor dhe Infrastrukturës
A8: MMPHI | B8: Kapitulli 14: Politika e transportit | C8: -10
A9: MMPHI | B9: Kapitulli 27: Mjedisi dhe ndryshimet klimatike | C9: 0
A10: Score | C10: 0
A11: Ministria e Arsimit, Shkencës, Teknologjisë dhe Inovacionit
A12: MASHTI | B12: Kapitulli 3: E drejta e themelimit dhe liria për të ofruar shërbime | C12: 0
A13: MASHTI | B13: Kapitulli 25: Shkenca dhe hulumtimi | C13: 10
A14: MASHTI | B14: Kapitulli 26: Arsimi dhe kultura | C14: 0
A15: Score | C15: 10
A16: Ministria e Bujqësisë, Pylltarisë dhe Zhvillimit Rural
A17: MBPZHR | B17: Kapitulli 11: Bujqësia dhe zhvillimi rural | C17: 0
A18: MBPZHR | B18: Kapitulli 12: Siguria ushqimore, politika veterinare dhe fitosanitare | C18: -10
A19: Score | C19: 0
A20: Ministria e Punëve të Brendshme
A21: MPB | B21: Reforma e Administratës Publike | C21: 0
A22: MPB | B22: Kapitulli 24: Drejtësi, liri dhe siguri | C22: 0
A23: Score | C23: 0
A24: Ministria e Industrisë, Ndërmarrësisë dhe Tregtisë
A25: MINT | B25: Kapitulli 1: Lëvizja e lirë e mallrave | C25: 0
A26: MINT | B26: Kapitulli 2: Liria e lëvizjes për punëtorët Kapitulli 3: E drejta e themelimit dhe liria për të ofruar shërbime | C26: -10
A27: MINT | B27: Kapitulli 4: Lëvizja e lirë e kapitalit | C27: 0
A28: MINT | B28: Kapitulli 6: E drejta e shoqërive tregtare | C28: 0
A29: MINT | B29: Kapitulli 7: E drejta e pronësisë intelektuale | C29: 0
A30: MINT | B30: Kapitulli 20: Politika e ndërmarrjed dhe industrisë | C30: 10
A31: MINT | B31: Kapitulli 28: Mbrojtja e konsumatorit dhe shëndetit | C31: 0
A32: MINT | B32: Kapitulli 30: Marrëdhëniet e jashtme | C32: 0
A33: Score | C33: 10
A34: Ministria e Drejtësisë
A35: MD | B35: Kapitulli 23: Gjyqësori dhe të drejtat themelore | C35: 0
A36: Score | C36: 0
A37: Ministria e Financave, Punës dhe Transfereve
A38: MFPT | B38: Ekzistenca e një ekonomie tregu funksionale | C38: 0
A39: MFPT | B39: Kapitulli 16: Tatimet | C39: 0
A40: MFPT | B40: Kapitulli 17: Politika ekonomike dhe monetare | C40: 0
A41: MFPT | B41: Kapitulli 19: Politika sociale dhe punësimi | C41: 0
A42: MFPT | B42: Kapitulli 29: Bashkimi Doganor | C42: 0
A43: Score | C43: 0
A44: Ministria për Komunitete dhe Kthim
A45: MKK | B45: Kapitulli 23: Gjyqësori dhe të drejtat themelore | C45: 0
A46: Score | C46: 0
A47: Ministria e Shëndetësisë
A48: MSH | B48: Kapitulli 28: Mbrojtja e konsumatorit dhe shëndetit | C48: 0
A49: Score | C49: 0
A50: Zyra e Kryeministrit
A51: ZKM | B51: Reforma e Administratës Publike | C51: 0
A52: ZKM | B52: Kapitulli 23: Gjyqësori dhe të drejtat themelore | C52: 0
A53: Score | C53: 0
A54: Ministria e Kulturës, Rinisë dhe Sportit
A55: MKRS | B55: Kapitulli 7: E drejta e pronësisë intelektuale | C55: 0
A56: MKRS | B56: Kapitulli 23: Judiciary and fundamental rights | C56: 0
A57: Score | C57: 0
A58: Ministria e Administrimit të Pushtetit Lokal
A59: MAPL | B59: N/A | C59: 0
A60: Score | C60: 0
A62: Ndryshe nga kriteret e tjera, sipas këtij kriteri ne nuk vlerësojmë secilën masë. Këtu e gjithë ministria vlerësohet me një nga vlerat e mëposhtme: “10”, “0” ose “-10”. Ministria vlerësohet me vlerën “10” nëse raporti i fundit i vendit ka shënuar progres më të mirë këtë vit se ai i mëparshmi. Ministria vlerësohet me vlerën “0” nëse raporti i fundit i vendit nuk ka pasur asnjë ndryshim në performancën e ministrisë këtë vit krahasuar me atë të mëparshëm. Ministria vlerësohet me vlerën “-10” nëse raporti i fundit i vendit ka shënuar progres më të vogël këtë vit se ai i mëparshmi. Së fundi, rezultati më pas transferohet në vlerësimin e përgjithshëm nën kriteret e kolonës “Vlerësimi i Raportit të Vendit të BE-së”.
